{"text_format":"1","workbook":"xlsx","n_sheets":7,"sheets":["Ambitos y Tipo Actividad","Desplegables","Identificación","Descripción General","ObjetivosActividadesPresupuesto","Articulación Territorial","Participantes"],"not_rendered":{"charts":0,"images":2,"macros":1,"external_links":0,"defined_names":20,"comments":0,"pivot_tables":0},"unopened":[],"bounds":{"document_bytes":16777216,"sheet_cells":100000,"rows_first":2000,"rows_last":500,"rows_between":2000,"halvings":0,"cell_chars":16384,"cell_head_chars":4096},"cells_cut":0,"cells_raw":0,"read":"whole","date_system":"1900"}

{"sheet":"Ambitos y Tipo Actividad","index":0,"n_rows":248,"n_cols":6,"rows_kept":248,"cut":false,"hidden":true,"merged":[[141,1,143,1],[144,1,146,1],[123,0,146,0],[123,1,125,1],[126,1,128,1],[129,1,131,1],[132,1,134,1],[135,1,137,1],[138,1,140,1],[37,0,38,0],[39,1,49,1],[50,1,59,1],[60,1,62,1],[63,1,65,1],[37,1,38,1],[39,0,122,0],[119,1,122,1],[66,1,69,1],[87,1,100,1],[101,1,104,1],[105,1,114,1],[115,1,118,1],[70,1,72,1],[73,1,74,1],[75,1,86,1]]}
["TABLA ÁMBITOS Y TIPO DE ACTIVIDAD (extraído de Camino Mujer)"]
[]
["Ámbitos y Sub-ámbitos de los Objetivos específicos:"]
[]
["Cada intervención definirá un único Objetivo General. Se podrán ingresar diversos Objetivos Específicos para el proyecto. Para cada Objetivo Específico se deberá definir el Ámbito y Sub – ámbito principal al que contribuye."]
["Cada Objetivo Específico estará integrado por una o diversas Actividades, y para cada Actividad deberán definirse los Costos asociados"]
[]
["Ámbito","Sub-ámbito",null,null,"RUBROS:","Tabla RUBROS en nuevo formulario RPF"]
["Social","Asociativismo / Cooperativismo",null,null,"(Elija opción)","(Elija opción)"]
["Económico-Productivo","Iniciación Productiva",null,null,"Ganadería de carne","Ganadería bovina"]
["Económico-Productivo","Productividad",null,null,"Ganadería de lana","Ganadería ovina"]
["Económico-Productivo","Comercialización y acceso a mercados",null,null,"Lechería: leche fluída","Lechería: remitente"]
["Económico-Productivo","Encadenamientos productivos",null,null,"Lechería: quesería artesanal","Lechería: quesería artesanal y otros"]
["Económico-Productivo","Financiamiento",null,null,"Aves","Avicultura integrada"]
["Económico-Productivo","Logística",null,null,"Cerdos ","Aves de traspatio"]
["Económico-Productivo","Infraestructura física",null,null,"Caprinos","Cerdos"]
["Económico-Productivo","Bienes de capital",null,null,"Horticultura","Caprinos"]
["Económico-Productivo","Manejo",null,null,"Fruticultura y Citricultura","Horticultura"]
["Económico-Productivo","Acceso a tierra",null,null,"Viticultura","Fruticultura"]
["Económico-Productivo","Genética",null,null,"Floricultura","Citricultura"]
["Económico-Productivo","Alimentación/nutrición",null,null,"Agricultura de Cereales y Oleaginosos","Viticultura"]
["Económico-Productivo","Sanidad",null,null,"Forestación/Leña","Floricultura y plantas ornamentales"]
["Ambiental","Biodiversidad",null,null,"Apicultura","Producción de plantines"]
["Ambiental","RRNN: Suelo",null,null,"Forraje para ventas","Agricultura de cereales y oleaginosos"]
["Ambiental","RRNN: Agua",null,null,"Caña de azúcar","Forestación (leña y otros)"]
["Ambiental","RRNN: Aire",null,null,"Tabaco","Apicultura"]
["Ambiental","Campo natural",null,null,"Artesanías rurales","Forraje para ventas"]
["Ambiental","Monte nativo",null,null,"Turismo Rural","Procesamiento artesanal de alimentos (dulces, conservas)"]
["Ambiental","Gestión de residuos",null,null,"Pesca artesanal","Caña de azúcar"]
["Ambiental","Adaptación al Cambio Climático",null,null,"Servicios","Tabaco"]
[null,"(Elija opción)",null,null,"Otros","Artesanías rurales"]
[null,null,null,null,"En caso de seleccionar \"Otros\" (especificar cuál)","Turismo rural"]
["Opciones de Ámbitos, Sub-Ámbitos y Tipos de Actividad",null,null,null,null,"Otros: especificar"]
[]
["A continuación, se listan las opciones de ámbitos y sub-ámbitos para definir objetivos específicos. Así como también los Tipos de Actividad asociados a cada uno de ellos."]
[]
["Ámbitos","Sub-Ámbitos","Tipos de Actividad",null,"Ámbitos","Sub Ámbitos"]
["Social","Asociativismo / Cooperativismo","Capacitación",null,"(Ninguno)","(Ninguno)"]
[null,null,"Talleres y actividades grupales",null,"Social","Asociativismo / Cooperativismo"]
["Económico - Productivo","Iniciación Productiva","Capacitación",null,"Económico - Productivo","Iniciación Productiva"]
[null,null,"Talleres y actividades grupales",null,"Ambiental","Productividad"]
[null,null,"Compra de animales - Aves",null,null,"Comercialización y acceso a mercados"]
[null,null,"Compra de animales - Caprinos",null,null,"Encadenamientos productivos"]
[null,null,"Compra de animales - Equinos",null,null,"Financiamiento"]
[null,null,"Compra de animales - Ovinos",null,null,"Logística"]
[null,null,"Compra de animales - Suinos",null,null,"Acceso a tierra"]
[null,null,"Compra de animales - Vacunos",null,null,"Infraestructura física"]
[null,null,"Compra de insumos productivos (semillas, fertilizantes, raciones, etc.)",null,null,"Bienes de capital"]
[null,null,"Formalización de emprendimientos",null,null,"Manejo"]
[null,null,"Implementación de técnicas de gestión, organización o administración)",null,null,"Genética"]
[null,"Productividad","Capacitación",null,null,"Alimentación/nutrición"]
[null,null,"Talleres y actividades grupales",null,null,"Sanidad"]
[null,null,"Compra de animales - Aves",null,null,"Adaptación al Cambio Cambio Climático"]
[null,null,"Compra de animales - Caprinos",null,null,"Biodiversidad"]
[null,null,"Compra de animales - Equinos",null,null,"Campo natural"]
[null,null,"Compra de animales - Ovinos",null,null,"Gestión de residuos"]
[null,null,"Compra de animales - Suinos",null,null,"Monte nativo"]
[null,null,"Compra de animales - Vacunos",null,null,"RRNN: Agua"]
[null,null,"Compra de insumos productivos (semillas, fertilizantes, raciones, etc.)",null,null,"RRNN: Aire"]
[null,null,"Implementación de técnicas de gestión, organización o administración)",null,null,"RRNN: Suelo"]
[null,"Comercialización y acceso a mercados","Capacitación"]
[null,null,"Talleres y actividades grupales"]
[null,null,"Implementación de técnicas de gestión, organización o administración)"]
[null,"Encadenamientos productivos","Capacitación"]
[null,null,"Talleres y actividades grupales"]
[null,null,"Implementación de técnicas de gestión, organización o administración)"]
[null,"Financiamiento","Capacitación"]
[null,null,"Talleres y actividades grupales"]
[null,null,"Implementación de técnicas de gestión, organización o administración)"]
[null,null,"Implementación de fondo rotatorio"]
[null,"Logística","Capacitación"]
[null,null,"Talleres y actividades grupales"]
[null,null,"Implementación de técnicas de gestión, organización o administración)"]
[null,"Acceso a tierra","Capacitación"]
[null,null,"Talleres y actividades grupales"]
[null,"Infraestructura física","Galpones"]
[null,null,"Invernáculos"]
[null,null,"Potreros/ Alambrados"]
[null,null,"Caminería interna"]
[null,null,"Comederos"]
[null,null,"Sistema de riego (cañería, equipos, etc.)"]
[null,null,"Fuentes de energía renovable (paneles solares, molino, etc.)"]
[null,null,"Depósito y distribución de agua (no riego)"]
[null,null,"Mangas"]
[null,null,"Silos"]
[null,null,"Balanzas y básculas"]
[null,null,"Sala de ordeñe"]
[null,"Bienes de capital","Equipos, insumos informáticos y software"]
[null,null,"Máquinas motrices y estacionarias de tracción"]
[null,null,"Maquinaria de preparación del suelo"]
[null,null,"Equipos para el trabajo de suelo"]
[null,null,"Equipos para siembra, plantación y trasplante"]
[null,null,"Equipos para aporte de fertilizantes"]
[null,null,"Equipos para el cuidado y la protección de plantas"]
[null,null,"Equipos para la recolección"]
[null,null,"Equipos para mantenimiento, transporte y almacenamiento"]
[null,null,"Maquinaria de post-recolección"]
[null,null,"Equipos para la producción animal"]
[null,null,"Equipos diversos de la explotación agropecuaria"]
[null,null,"Maquinaria industrial (fraccionamiento, procesamiento, envasado, etc.)"]
[null,null,"Vehículos y utilitarios"]
[null,"Manejo","Capacitación"]
[null,null,"Talleres y actividades grupales"]
[null,null,"Compra de insumos productivos (semillas, fertilizantes, raciones, etc.)"]
[null,null,"Implementación de prácticas productivas"]
[null,"Genética","Capacitación"]
[null,null,"Talleres y actividades grupales"]
[null,null,"Compra de animales - Aves"]
[null,null,"Compra de animales - Caprinos"]
[null,null,"Compra de animales - Equinos"]
[null,null,"Compra de animales - Ovinos"]
[null,null,"Compra de animales - Suinos"]
[null,null,"Compra de animales - Vacunos"]
[null,null,"Compra de insumos productivos (semillas, fertilizantes, raciones, etc.)"]
[null,null,"Implementación de prácticas productivas"]
[null,"Alimentación/nutrición","Capacitación"]
[null,null,"Talleres y actividades grupales"]
[null,null,"Compra de insumos productivos (semillas, fertilizantes, raciones, etc.)"]
[null,null,"Implementación de prácticas productivas"]
[null,"Sanidad","Capacitación"]
[null,null,"Talleres y actividades grupales"]
[null,null,"Compra de insumos sanitarios"]
[null,null,"Implementación de prácticas productivas"]
["Ambiental","Adaptación al Cambio Cambio Climático","Capacitación"]
[null,null,"Talleres y actividades grupales"]
[null,null,"Implementación de prácticas para la conservación y uso responsable"]
[null,"Biodiversidad","Capacitación"]
[null,null,"Talleres y actividades grupales"]
[null,null,"Implementación de prácticas para la conservación y uso responsable"]
[null,"Campo natural","Capacitación"]
[null,null,"Talleres y actividades grupales"]
[null,null,"Implementación de prácticas para la conservación y uso responsable"]
[null,"Gestión de residuos","Capacitación"]
[null,null,"Talleres y actividades grupales"]
[null,null,"Implementación de prácticas para la conservación y uso responsable"]
[null,"Monte nativo","Capacitación"]
[null,null,"Talleres y actividades grupales"]
[null,null,"Implementación de prácticas para la conservación y uso responsable"]
[null,"RRNN: Agua","Capacitación"]
[null,null,"Talleres y actividades grupales"]
[null,null,"Implementación de prácticas para la conservación y uso responsable"]
[null,"RRNN: Aire","Capacitación"]
[null,null,"Talleres y actividades grupales"]
[null,null,"Implementación de prácticas para la conservación y uso responsable"]
[null,"RRNN: Suelo","Capacitación"]
[null,null,"Talleres y actividades grupales"]
[null,null,"Implementación de prácticas para la conservación y uso responsable"]
[]
[]
["Listado de Tipos de Actividad:"]
[]
[null,"Actividades"]
[null,"(Elija opción)"]
[1,"Capacitación"]
[2,"Talleres y actividades grupales"]
[3,"Compra de animales - Aves"]
[4,"Compra de animales - Caprinos"]
[5,"Compra de animales - Equinos"]
[6,"Compra de animales - Ovinos"]
[7,"Compra de animales - Suinos"]
[8,"Compra de animales - Vacunos"]
[9,"Compra de insumos productivos (semillas, fertilizantes, raciones, etc.)"]
[10,"Formalización de emprendimientos"]
[11,"Galpones"]
[12,"Invernáculos"]
[13,"Potreros/ Alambrados"]
[14,"Caminería interna"]
[15,"Comederos"]
[16,"Sistema de riego (cañería, equipos, etc.)"]
[17,"Fuentes de energía renovable (paneles solares, molinos, etc)"]
[18,"Depósito y distribución de agua (no riego)"]
[19,"Mangas"]
[20,"Silos"]
[21,"Balanzas y básculas"]
[22,"Sala de ordeñe"]
[23,"Equipos, insumos informáticos y software"]
[24,"Máquinas motrices y estacionarias de tracción","En Camino Mujer hay clasificación de maquinaria"]
[25,"Maquinaria de preparación del suelo"]
[26,"Equipos para el trabajo de suelo"]
[27,"Equipos para siembra, plantación y trasplante"]
[28,"Equipos para aporte de fertilizantes"]
[29,"Equipos para el cuidado y la protección de plantas"]
[30,"Equipos para la recolección"]
[31,"Equipos para mantenimiento, transporte y almacenamiento"]
[32,"Maquinaria de post-recolección"]
[33,"Equipos para la producción animal"]
[34,"Equipos diversos de la explotación agropecuaria"]
[35,"Maquinaria industrial (fraccionamiento, procesamiento, envasado, etc.)"]
[36,"Vehículos y utilitarios"]
[37,"Implementación de prácticas para la conservación y uso responsable"]
[38,"Implementación de prácticas productivas"]
[39,"Implementación de técnicas de gestión, organización o administración"]
[40,"Implementación de fondo rotatorio"]
[41,"Compra de insumos sanitarios"]
[]
["Clasificación tipos de maquinaria"]
[]
["A continuación, se definen los distintos tipos de maquinaria utilizados en los tipos de actividades del proyecto."]
["La clasificación utilizada está basada en la norma internacional ISO 3339 (UNE 68051)."]
["Máquinas motrices y estacionarias de tracción:"]
["Motores que transforman la energía química del combustible en energía mecánica para accionamiento directo de ejes de máquinas agrícolas, o de elementos de propulsión (ruedas, cadenas…) que suministran esfuerzo de tracción en su desplazamiento (potencia de tracción). También proporcionan un caudal de aceite bajo presión para el accionamiento de motores hidráulicos y otros dispositivos de las máquinas agrícolas."]
["Como máquinas más representativas del grupo se encuentran los tractores agrícolas; también incluye los bastidores autopropulsados sobre los que se instalan máquinas de diferente tipo, como los equipos de recolección de granos y semillas, o los aviones para tratamientos aéreos y los motores estacionarios, como los que se utilizan para accionar equipos de riego."]
["Maquinaria de preparación del suelo:"]
["-            Equipos para prospección de aguas subterráneas, que recoge todo el material para ejecución de pozos y extracción de aguas subterráneas."]
["-            Equipos para desmonte, para el arranque y la eliminación de la vegetación leñosa, incluida las raíces, necesarias para la puesta en cultivo de un suelo forestal más o menos degradado; este grupo de máquinas puede tener interés para el manejo de cultivos leñosos de aprovechamiento energético"]
["-            Equipos para la preparación primaria del suelo, específicos para labores muy profundas eliminando las capas endurecidas que limitan el desarrollo radicular, especialmente en las plantaciones arbóreas, así como la eliminación de las piedras que puedan interferir con los cultivos"]
["-            Equipos para la construcción de canales, zanjas de riego y saneamiento, relacionados con el manejo del agua en el suelo, tanto en lo que se refiere al riego como al drenaje de suelos."]
["-            Equipos para la construcción de caminos rurales, que incluye la maquinaria para excavación, transporte y asentado de la tierra."]
["Equipos para el trabajo de suelo:"]
["Diseñados para ser arrastrados por los tractores agrícolas y/o accionados por sus tomas de fuerza. La robustez de la estructura a la que van unidas las piezas labrantes aumenta a medida que lo hace la profundidad de intervención en el suelo. Se establecen los siguientes subgrupos:"]
["-            Equipos para labores profundas, que son la base del laboreo “primario” del suelo."]
["-            Equipos para preparación de lecho de siembra, que hacen posible el laboreo “secundario”."]
["-            Equipos para labores entre líneas, que permiten realizar las labores una vez que el cultivo ha sido implantado."]
["-            Equipos para preparación de substrato para cultivo forzado, maquinaria especializada de la agricultura intensiva."]
["-            Otros equipos para trabajo del suelo que no encajen en los subgrupos anteriores pero que sean una alternativa para cualquier equipo de trabajo del suelo."]
["-            Los elementos labrantes toman formas diversas, predominando las denominadas púas, dientes o rejas, los discos y las azadas."]
["Equipos para siembra, plantación y trasplante:"]
["-            Máquinas para siembra, que permiten la implantación de los cultivos a partir de semilla."]
["-            Máquinas para plantación, que hacen posible la implantación del cultivo a partir de cierta cantidad de material vegetal, incluida una planta completa procedente de un semillero."]
["-            Otras máquinas para siembra y plantación, que incluiría los equipos que no pudieran ser encajados en los dos subgrupos anteriores"]
["Equipos para aporte de fertilizantes:"]
["En el caso de aportes orgánicos se relaciona la cantidad de material esparcido con el desplazamiento del equipo sobre el campo. Disponen de una tolva grande, o de un depósito cuando se distribuyen productos líquidos, ya que los aportes pueden ser de varias toneladas por hectárea. En el caso de abonos minerales, la dosificación se consigue modificando el orificio de salida de la tolva, cayendo el material directamente al suelo, sobre unos dispositivos de proyección (discos o trompas oscilantes) o en una corriente de aire. Para conseguir uniformidad en la distribución con los sistemas de proyección es necesario un solapamiento entre pasadas contiguas. En algunos casos se incluye proporcionalidad entre el avance y la cantidad aportada. En el caso de fertilizantes líquidos se utilizan sistemas de bombeo y boquillas de pulverización (pulverizador hidráulico)."]
["Equipos para el cuidado y la protección de plantas:"]
["-            Equipos para recortar y podar"]
["-            Equipos para protección contra agentes atmosféricos"]
["-            Equipos para el control de plagas, enfermedades y malezas"]
["-            quipos para montaje de espalderas"]
["-            Aplicadores de cubierta del suelo"]
["Equipos para la recolección:"]
["Pueden considerarse dos tipos constructivos:"]
["-            Máquinas que realizan todo el proceso de recolección en una sola fase, incluyendo las operaciones que se necesitan para sacar la cosecha del campo, como en el caso de la recolección de granos y semillas."]
["-            Máquinas que realizan una o varias etapas del proceso de recolección, como la siega o la recogida de la hierba para ensilar o henificar, o el descoronado, arranque y limpieza en la remolacha azucarera."]
["Equipos para mantenimiento, transporte y almacenamiento:"]
["-            Pueden establecerse dos bloques:"]
["-            Equipos móviles, como remolques agrícolas y palas cargadoras para su montaje frontal en los tractores agrícolas."]
["-            Equipos e instalaciones fijas para el movimiento de cosechas en el almacén, como cintas trasportadoras, sistemas de conducciones para el transporte de grano, etc."]
["Maquinaria de post-recolección:"]
["Equipos estacionarios que disponen de sistemas recepción para la cosecha que llega del campo, de almacenamiento para antes y después del proceso que se realiza. En este grupo se incluyen los equipos para el secado, especialmente de granos y semillas, así como para la calibración y limpieza final de frutas y hortalizas para su consumo en fresco."]
["Equipos para la producción animal:"]
["-            Pueden establecerse varios bloques:"]
["-            Equipos fijos o móviles dotados de tolvas en las que se realizan las mezclas, a partir de las cuales se realiza la distribución sobre los comederos del ganado."]
["-            Instalaciones de ordeño que incluyen los dispositivos de generación de vacío y las unidades de ordeño, con los mecanismos que hacen posible los diferentes niveles de mecanización, incluido el ordeño robotizado."]
["-            Instalaciones y dispositivos para la contención y el manejo del ganado."]
["-            Equipos para la higiene de las instalaciones ganaderas."]
["Equipos diversos de la explotación agropecuaria:"]
["Los subgrupos más representativos son:"]
["-            Sistemas de climatización de las instalaciones (calefacción, refrigeración y ventilación con corrección de la humedad ambiental)."]
["-            Sistemas para recogida de residuos ganaderos, para su almacenamiento y acondicionado y para su esparcido en el campo."]

{"sheet":"Desplegables","index":1,"n_rows":615,"n_cols":60,"rows_kept":615,"cut":false,"hidden":true,"merged":[[0,15,0,20],[1,2,1,3],[0,0,0,10]]}
["HOJA DATOS BASICOS"]
[null,null,"DEPARTAMENTO",null,null,"Zona o Localidad",null,null,null,null,null,null,null,null,null,"Dicotómico",null,null,null,null,null,null,null,"ARTIGAS",null,"CANELONES",null,"CERRO_LARGO",null,"COLONIA",null,"DURAZNO",null,"FLORES",null,"FLORIDA",null,"LAVALLEJA",null,"MALDONADO",null,"MONTEVIDEO",null,"PAYSANDU",null,"RIO_NEGRO",null,"RIVERA",null,"ROCHA",null,"SALTO",null,"SAN_JOSE",null,"SORIANO",null,"TACUAREMBO",null,"TREINTA_Y_TRES"]
["Modalidad","Tipo Proyecto (cuando corresponda)","Código","Nombre",null,"COD_DEPTO_INE","Código_INE","Departamento","Nombre INE","Cobertura/Alcance","Mesa de Desarrollo Rural","Especificar rol que cumple en la Intervención para Equipo MGAP","Las y los jóvenes de la zona:",null,"Ud. es … (relativo al género):","¿En los últimos 12 meses se ha vinculado a alguna Organización o colectivo del medio rural?","Ascendencia","¿Último año de educación aprobado? (Nivel de Escolaridad)","Tenencia (Nombre)","Rubro Principal","Parentesco (respecto al/la participante)",null,null,"ARTIGAS",null,"LAS PIEDRAS",null,"FRAILE MUERTO",null,"COLONIA DEL SACRAMENTO",null,"DURAZNO",null,"TRINIDAD",null,"FLORIDA",null,"MINAS",null,"MALDONADO",null,"MONTEVIDEO",null,"PAYSANDU",null,"FRAY BENTOS",null,"RIVERA",null,"ROCHA",null,"SALTO",null,"SAN JOSE DE MAYO",null,"MERCEDES",null,"TACUAREMBO",null,"TREINTA Y TRES"]
["(Elija opción)","(Elija opción)","00","(Elija Opción)",null,1,1020,null,"MONTEVIDEO","(Elija opción)",null,"(Elija opción)","¿Tienen acceso a la tierra?",null,"(Elija opción)","(Elija opción)","afro o negra","(Elija opción)","(SIN DEFINIR)","(Elija opción)","(Elija opción)",null,null,"BELLA UNION",null,"CANELONES",null,"RIO BRANCO",null,"CARMELO",null,"SARANDI DEL YI",null,"ISMAEL CORTINAS",null,"SARANDI GRANDE",null,"JOSE BATLLE Y ORDOÑEZ",null,"SAN CARLOS",null,null,null,"GUICHON",null,"YOUNG",null,"MINAS DE CORRALES",null,"CASTILLOS",null,"BELEN",null,"LIBERTAD",null,"DOLORES",null,"PASO DE LOS TOROS",null,"SANTA CLARA DE OLIMAR"]
["Programa","Proyecto Individual","01","MONTEVIDEO",null,2,2220,null,"ARTIGAS","Sin Asignar",null,"Sin Asignar","(Elija opción)",null,"Mujer","SI","asiática o amarilla","Sin instrucción","Arrendamiento","Ganadería bovina","Titular",null,null,"TOMAS GOMENSORO",null,"LA PAZ",null,"TUPAMBAE",null,"JUAN LACAZE",null,"CARMEN",null,"ANDRESITO",null,"CASUPA",null,"JOSE PEDRO VARELA",null,"AIGUA",null,null,null,"NUEVO PAYSANDU",null,"NUEVO BERLIN",null,"TRANQUERAS",null,"LASCANO",null,"CONSTITUCION",null,"DELTA DEL TIGRE Y VILLAS",null,"CARDONA",null,"SAN GREGORIO DE POLANCO",null,"VERGARA"]
["Proyecto","Proyecto Colectivo","02","ARTIGAS",null,2,2521,null,"BELLA UNION","Local",null,"Referente","SI",null,"Varón","NO","blanca","Primaria incompleta","Colono/a"," Ganadería ovina","Esposo/a o compañero/a",null,null,"BALTASAR BRUM",null,"PANDO",null,"ISIDORO NOBLIA",null,"NUEVA HELVECIA",null,"BLANQUILLO",null,"JUAN JOSE CASTRO",null,"CARDAL",null,"MARISCALA",null,"PAN DE AZUCAR",null,null,null,"QUEBRACHO",null,"SAN JAVIER",null,"VICHADERO",null,"CHUY",null,"FERNANDEZ",null,"RODRIGUEZ",null,"JOSE ENRIQUE RODO",null,"TAMBORES",null,"ARROZAL TREINTA Y TRES"]
["Propuesta","Proyecto Mixto","03","CANELONES",null,2,2522,null,"TOMAS GOMENSORO","Departamental",null,"Coordinador zonal","NO",null,"Otros",null,"indígena","Primaria completa","Comodato","Lechería: remitente","Hijo/a de ambos",null,null,"BERNABE RIVERA",null,"SANTA LUCIA",null,"ACEGUA",null,"ROSARIO",null,"LA PALOMA",null,"LA CASILLA",null,"FRAY MARCOS",null,"SOLIS DE MATAOJO",null,"PIRIAPOLIS",null,null,null,"TAMBORES",null,"BARRIO ANGLO",null,"SANTA TERESA",null,"CEBOLLATI",null,"SAN ANTONIO",null,"ITUZAINGO",null,"PALMITAS",null,"ACHAR",null,"GRAL. ENRIQUE MARTINEZ"]
["Convenio ",null,"04","CERRO_LARGO",null,2,2621,null,"BALTASAR BRUM","Regional",null,"ETDR",null,null,null,null,"otra (Especificar)","Ciclo básico Liceo incompleto","Medianería","Lechería: quesería artesanal y otros","Hijo/a solo del solicitante",null,null,"FRANQUIA",null,"PIEDRAS DE AFILAR",null,"BAÑADO DE MEDINA",null,"NUEVA PALMIRA",null,"CARLOS REYLES",null,"CERRO COLORADO",null,"25 DE AGOSTO",null,"PIRARAJA",null,"PUNTA DEL ESTE",null,null,null,"LORENZO GEYRES",null,"GRECCO",null,"ARROYO BLANCO",null,"VELAZQUEZ",null,"CHACRAS DE BELEN",null,"SANTA MONICA",null,"VILLA SORIANO",null,"ANSINA",null,"VILLA SARA"]
["Acuerdo de trabajo",null,"05","COLONIA",null,2,2721,null,"BERNABE RIVERA","Nacional",null,null,null,null,null,null,"Ninguna (no hay una principal)","Ciclo básico Liceo completo","Ocupante","Avicultura integrada","Hijo/a solo del esposo/a o compañero/a",null,null,"SEQUEIRA",null,"CUMBRES DE CARRASCO",null,"CENTURION",null,"PASO ANTOLIN",null,"CENTENARIO",null,null,null,"25 DE MAYO",null,"ZAPICAN",null,"CERRO PELADO",null,null,null,"MERINOS",null,"MERINOS",null,"PASO ATAQUES",null,"18 DE JULIO",null,"ALBISU",null,"PUNTAS DE VALDEZ",null,"PALMAR",null,"CURTINA",null,"CERRO CHATO"]
["Actividad",null,"06","DURAZNO",null,2,2724,null,"FRANQUIA",null,null,null,null,null,null,null,null,"Ciclo básico UTU incompleto","Prominente Comprador/a","Aves de traspatio","Yerno/nuera",null,null,"CORONADO",null,"HARAS DEL LAGO",null,"CERRO DE LAS CUENTAS",null,"OMBUES DE LAVALLE",null,"SANTA BERNARDINA",null,null,null,"ALEJANDRO GALLINAL",null,"COLON",null,"GARZON",null,null,null,"PORVENIR",null,"ALGORTA",null,"CERRO PELADO",null,"LA PALOMA",null,"BIASSINI",null,"GONZALEZ",null,"EGAÑA",null,"PASO DEL CERRO",null,"ESTACION RINCON"]
["Entrega de insumos",null,"07","FLORES",null,2,2725,null,"SEQUEIRA",null,null,null,null,null,null,null,null,"Ciclo básico UTU completo","Propietario/a","Cerdos","Padre/madre",null,null,"CUAREIM",null,"QUINTA LOS HORNEROS",null,"HIPODROMO",null,"TARARIRAS",null,"CERRO CHATO",null,null,null,"CAPILLA DEL SAUCE",null,"ARAMENDIA",null,"GERONA",null,null,null,"ARBOLITO",null,"EL OMBU",null,"PASO HOSPITAL",null,"SAN LUIS AL MEDIO",null,"CAMPO DE TODOS",null,"MAL ABRIGO",null,"SANTA CATALINA",null,"CLARA",null,"ISLA PATRULLA (MARIA ISABEL)"]
["Otra",null,"08","FLORIDA",null,2,2822,null,"CORONADO",null,null,null,null,null,null,null,null,"Bachillerato Liceo incompleto","Usufructuario/a","Caprinos","Suegro/a",null,null,"CUARO",null,"LAS HIGUERITAS",null,"PLACIDO ROSAS",null,"COLONIA VALDENSE",null,"BAYGORRIA",null,null,null,"LA CRUZ",null,"BLANES VIALE",null,"LAS FLORES - ESTACION",null,null,null,"BEISSO",null,"PASO DE LOS MELLIZOS",null,"LAPUENTE",null,"LA AGUADA Y COSTA AZUL",null,"CAYETANO",null,"PLAYA PASCUAL",null,"AGRACIADA",null,"CUCHILLA DEL OMBU",null,"VALENTINES"]
[null,null,"09","LAVALLEJA",null,2,2823,null,"CUAREIM",null,null,null,null,null,null,null,null,"Bachillerato Liceo completo","Otro","Horticultura","Hermano/a",null,null,"JAVIER DE VIANA",null,"SOFIA SANTOS",null,"TOLEDO",null,"FLORENCIO SANCHEZ",null,"AGUAS BUENAS",null,null,null,"NICO PEREZ",null,"19 DE JUNIO",null,"LOS TALAS",null,null,null,"CASABLANCA",null,"SARANDI DE NAVARRO",null,"LAS FLORES",null,"19 DE ABRIL",null,"CUCHILLA DE GUAVIYU",null,"18 DE JULIO (PUEBLO NUEVO)",null,"CASTILLOS",null,"LA HILERA",null,"POBLADO ALONZO"]
[null,null,"10","MALDONADO",null,2,2824,null,"CUARO",null,null,null,null,null,null,null,null,"Bachillerato UTU incompleto",null,"Fruticultura","Cuñado/a",null,null,"LA BOLSA",null,"PROGRESO",null,"TRES ISLAS",null,"CONCHILLAS",null,"PUEBLO DE ALVAREZ",null,null,null,"CERRO CHATO",null,"ESTACION SOLIS",null,"NUEVA CARRARA",null,null,null,"CERRO CHATO",null,"VILLA GENERAL BORGES",null,"MOIRONES",null,"LA CORONILLA",null,"TERMAS DEL DAYMAN",null,"RAFAEL PERAZA",null,"RISSO",null,"LAS TOSCAS",null,"ARROCERA RINCON"]
[null,null,"11","PAYSANDU",null,2,2826,null,"JAVIER DE VIANA",null,null,null,null,null,null,null,null,"Bachillerato UTU completo",null,"Citricultura","Nieto/a",null,null,"LAS PIEDRAS",null,"SAN RAMON",null,"POBLADO URUGUAY",null,"CASERIO EL CERRO",null,"FELICIANO",null,null,null,"CHAMIZO",null,"GAETAN",null,"SOLIS",null,null,null,"CONSTANCIA",null,"VILLA MARIA",null,"LA PEDRERA",null,"BARRIO PEREIRA",null,"PALOMAS",null,"RAIGON",null,"SACACHISPAS",null,"PASO BONILLA",null,"ARROCERA LOS CEIBOS"]
[null,null,"12","RIO_NEGRO",null,2,2827,null,"LA BOLSA",null,null,null,null,null,null,null,null,"Magisterio/Profesorado incompleto",null,"Viticultura","Otro pariente",null,null,"PINTADITO",null,"BARROS BLANCOS",null,"ARBOLITO",null,"LA PAZ",null,"OMBUES DE ORIBE",null,null,null,"GOÑI",null,"POLANCO NORTE",null,"PUEBLO SOLIS",null,null,null,"MORATO",null,"LAS CAÑAS",null,"MANDUBI",null,"AGUAS DULCES",null,"PASO DEL PARQUE DEL DAYMAN",null,"SAFICI (PARQUE POSTEL)",null,"CAÑADA NIETO",null,"PUEBLO DE ARRIBA",null,"MARIA ALBINA"]
[null,null,"13","RIVERA",null,2,2828,null,"LAS PIEDRAS",null,null,null,null,null,null,null,null,"Magisterio/Profesorado completo",null,"Floricultura y plantas ornamentales","Otro no pariente",null,null,"PORT. DE HIERRO Y CAMPODONICO",null,"COLONIA NICOLICH",null,"AREVALO",null,"RIACHUELO",null,"ROSSELL Y RIUS",null,null,null,"MENDOZA",null,"VILLA DEL ROSARIO",null,"PINARES - LAS DELICIAS",null,null,null,"PIEDRAS COLORADAS",null,"BELLACO",null,"LAGUNON",null,"BARRA DEL CHUY",null,"QUINTANA",null,"JUAN SOLER",null,"CUCHILLA DEL PERDIDO",null,"PUEBLO DEL BARRO",null,"MENDIZABAL (EL ORO)"]
[null,null,"14","ROCHA",null,2,2830,null,"PINTADITO",null,null,null,null,null,null,null,null,"Otra Terciaria incompleta",null,"Producción de plantines",null,null,null,"MONES QUINTELA",null,"JOAQUIN SUAREZ",null,"CASERIO LAS CAÑAS",null,"JUAN CARLOS CASEROS",null,"SAN JORGE",null,null,null,"MENDOZA CHICO",null,"VILLA SERRANA",null,"CHIHUAHUA",null,null,null,"PIÑERA",null,"LOS ARRAYANES",null,"AMARILLO",null,"BARRIO TORRES",null,"SARANDI DE ARAPEY",null,"BOCA DEL CUFRE",null,"EL TALA",null,"RINCON DEL BONETE",null,"PUNTAS DEL PARAO"]
[null,null,"15","SALTO",null,2,2831,null,"PORT. DE HIERRO Y CAMPODONICO",null,null,null,null,null,null,null,null,"Otra Terciaria completa",null,"Agricultura de cereales y oleaginosos",null,null,null,"CAINSA",null,"PASO CARRASCO",null,"ESPERANZA",null,"AGRACIADA",null,"LAS PALMAS",null,null,null,"REBOLEDO",null,"BARRIO LA CORONILLA - ANCAP",null,"VILLA DELIA",null,null,null,"SAN FELIX",null,"MENAFRA",null,"CERRILLADA",null,"CABO POLONIO",null,"SAUCEDO",null,"CAPURRO",null,"LA CONCORDIA",null,"BALNEARIO IPORA",null,"VILLA PASSANO"]
[null,null,"16","SAN_JOSE",null,2,2833,null,"MONES QUINTELA",null,null,null,null,"(Elija opción)",null,"(*) Ascendencia",null,"Educación Militar y/o Policial incompleta",null,"Forestación (leña y otros)",null,null,null,"PASO CAMPAMENTO",null,"SANTA ROSA",null,"GETULIO VARGAS",null,"BOCA DEL ROSARIO",null,null,null,null,null,"VALENTINES",null,"SAN FRANCISCO DE LAS SIERRAS",null,"SAN RAFAEL - EL PLACER",null,null,null,"VILLA MARIA (TIATUCURA)",null,"TRES QUINTAS",null,"CERROS DE LA CALERA",null,"CAPACHO",null,"ARENITAS BLANCAS",null,"VILLA MARIA",null,"LA LOMA",null,"PIEDRA SOLA",null,"EJIDO DE TREINTA Y TRES"]
[null,null,"17","SORIANO",null,2,2925,null,"CAINSA",null,null,"(Elija opción)",null,1,null,"Afro o negra",null,"Educación Militar y/o Policial completa",null,"Apicultura",null,null,null,"DIEGO LAMAS",null,"SAUCE",null,"LA PEDRERA",null,"CUFRE",null,null,null,null,null,"BERRONDO",null,"ILLESCAS",null,"BARRIO HIPODROMO",null,null,null,"PIEDRA SOLA",null,null,null,"LAGOS DEL NORTE",null,"BARRA DE VALIZAS",null,"CELESTE",null,"ECILDA PAULLIER",null,"PALO SOLO",null,"CARDOZO",null,"EL BELLACO"]
[null,null,"18","TACUAREMBO",null,2,2927,null,"PASO CAMPAMENTO",null,null,"Institutos / Ministerios / Entidad pública-privada ",null,2,null,"Asiática o amarilla",null,"Universitaria incompleta",null,"Forraje para ventas",null,null,null,"PASO FARIAS",null,"TALA",null,"LAGO MERIN",null,"EL SEMILLERO",null,null,null,null,null,"PUEBLO FERRER",null,null,null,"LOS AROMOS",null,null,null,"ARAUJO",null,null,null,"MASOLLER",null,"LA ESMERALDA",null,"CERROS DE VERA",null,"KIYU-ORDEIG",null,"CHACRAS DE DOLORES",null,"CHAMBERLAIN",null,"ARROCERA LOS TEROS"]
[null,null,"19","TREINTA_Y_TRES",null,2,2934,null,"DIEGO LAMAS",null,null,"Entidad de Enseñanza",null,3,null,"Blanca",null,"Universitaria completa",null,"Procesamiento artesanal de alimentos (dulces, conservas)",null,null,null,"RINCON DE PACHECO",null,"VILLA CRESPO Y SAN ANDRES",null,"MANGRULLO",null,"ESTACION ESTANZUELA",null,null,null,null,null,"INDEPENDENCIA",null,null,null,"BELLA VISTA",null,null,null,"BELLA VISTA",null,null,null,null,null,"LA PEDRERA",null,"GARIBALDI",null,"LA BOYADA",null,"COLONIA CONCORDIA",null,"CUCHILLA DE PERALTA",null,"ARROCERA BONOMO"]
[null,null,null,null,null,2,2945,null,"PASO FARIAS",null,null,"Empresa privada ",null,4,null,"Indígena",null,"Posgrado",null,"Caña de azúcar",null,null,null,"TOPADOR",null,"FRACC. CNO. ANDALUZ Y R.84",null,"NANDO",null,"CERROS DE SAN JUAN",null,null,null,null,null,"MONTECORAL",null,null,null,"CANTERAS DE MARELLI",null,null,null,"CAÑADA DEL PUEBLO",null,null,null,null,null,"PARALLE",null,"TERMAS DEL ARAPEY",null,"CAÑADA GRANDE",null,"PERSEVERANO",null,"LA PEDRERA",null,"ARROCERA EL TIGRE"]
[null,null,null,null,null,2,2952,null,"RINCON DE PACHECO",null,null,null,null,5,null,"Otra (especificar)",null,"Otro (Especificar)",null,"Tabaco",null,null,null,"CERRO EJIDO",null,"ATLANTIDA",null,"QUEBRACHO",null,"MIGUELETE",null,null,null,null,null,"PINTADO",null,null,null,"CERROS AZULES",null,null,null,"CHAPICUY",null,null,null,null,null,"PUERTO DE LOS BOTES",null,"LAS FLORES",null,"RINCON DEL PINO",null,"LARES",null,"LAURELES",null,"ARROCERA LA CATUMBERA"]
[null,null,null,null,null,2,2957,null,"TOPADOR",null,null,null,null,6,null,"o   Ninguna (no hay una principal)",null,null,null,"Artesanías rurales",null,null,null,"COLONIA PALMA",null,"ESTACION ATLANTIDA",null,"RAMON TRIGO",null,"CAMPANA",null,null,null,null,null,"POLANCO DEL YI",null,null,null,"EL CHORRO",null,null,null,"EL EUCALIPTUS",null,null,null,null,null,"PUIMAYEN",null,"LAURELES",null,"SAN GREGORIO",null,null,null,"MONTEVIDEO CHICO",null,"ARROCERA LA QUERENCIA"]
[null,null,null,null,null,2,2958,null,"CERRO EJIDO",null,null,null,null,7,null,"o   Si responde Otra, especificar",null,null,null,"Turismo rural",null,null,null,"CERRO SIGNORELLI (EL MIRADOR)",null,"CERRILLOS",null,"SOTO GORO",null,"ARTILLEROS",null,null,null,null,null,"PUNTAS DE MACIEL",null,null,null,"EL EDEN",null,null,null,"ESPERANZA",null,null,null,null,null,"ARACHANIA",null,"LLUVERAS",null,"SCAVINO",null,null,null,"CERRO DE PASTOREO",null,"ARROCERA LAS PALMAS"]
[null,null,null,null,null,2,2959,null,"COLONIA PALMA",null,null,null,null,8,null,null,null,null,null,"Otros: especificar",null,null,null,"CERRO SAN EUGENIO",null,"EMPALME OLMOS",null,"BARRIO LOPEZ BENITEZ",null,"BARKER",null,null,null,null,null,"ILLESCAS",null,null,null,"EL TESORO",null,null,null,"PUEBLO FEDERACION",null,null,null,null,null,"PTA. RUBIA Y STA. ISABEL DE LA PEDRERA",null,"MIGLIARO",null,"MONTE GRANDE",null,null,null,"SAUCE DE BATOVI",null,"ARROCERA MINI"]
[null,null,null,null,null,2,2961,null,"CERRO SIGNORELLI (EL MIRADOR)",null,null,null,null,9,null,null,null,null,null,null,null,null,null,"CALNU",null,"MIGUES",null,"BARRIO LA VINCHUCA",null,"EL ENSUEÑO",null,null,null,null,null,"CASERIO LA FUNDACION",null,null,null,"FARO JOSE IGNACIO",null,null,null,"LA TENTACION",null,null,null,null,null,"PUNTA DEL DIABLO",null,"OLIVERA",null,"CERAMICAS DEL SUR",null,null,null,"PUNTAS DE CINCO SAUCES",null,"ARROCERA PROCIPA"]
[null,null,null,null,null,2,2962,null,"CERRO SAN EUGENIO",null,null,null,null,10,null,null,null,null,null,null,null,null,null,null,null,"PARQUE DEL PLATA",null,"ARACHANIA",null,"BLANCA ARENA",null,null,null,null,null,"LA MACANA",null,null,null,"GREGORIO AZNAREZ",null,null,null,"ORGOROSO",null,null,null,null,null,"PALMARES DE LA CORONILLA",null,"PASO DE LAS PIEDRAS DE ARERUNGUA",null,"RADIAL",null,null,null,"RINCON DE PEREIRA",null,"ARROCERA SAN FERNANDO"]
[null,null,null,null,null,2,2963,null,"CALNU",null,null,null,null,null,null,null,null,null,null,null,null,null,null,null,null,"SAN BAUTISTA",null,"ÑANGAPIRE",null,"BRISAS DEL PLATA",null,null,null,null,null,"ESTACION CAPILLA DEL SAUCE",null,null,null,"LA BARRA",null,null,null,"CUCHILLA DE BURICAYUPI",null,null,null,null,null,"LA RIBIERA",null,"PUNTAS DE VALENTIN",null,"COLOLO TINOSA",null,null,null,"PUNTA DE CARRETERA",null,"ARROCERA SANTA FE"]
[null,null,null,null,null,3,3221,null,"LAS PIEDRAS",null,null,null,null,null,null,null,null,null,null,null,null,null,null,null,null,"SAN JACINTO",null,"MELO",null,"COLONIA COSMOPOLITA",null,null,null,null,null,"SAN GABRIEL",null,null,null,"LA CAPUERA",null,null,null,"SOTO",null,null,null,null,null,"PUENTE VALIZAS",null,"RINCON DE VALENTIN",null,"MANGRULLO",null,null,null,"CRUZ DE LOS CAMINOS",null,"ARROCERA ZAPATA"]
[null,null,null,null,null,3,3320,null,"CANELONES",null,null,null,null,null,null,null,null,null,null,null,null,null,null,null,null,"DR. FRANCISCO SOCA",null,null,null,"PARAJE MINUANO",null,null,null,null,null,null,null,null,null,"LAS FLORES",null,null,null,"ZEBALLOS",null,null,null,null,null,"OCEANIA DEL POLONIO",null,"COLONIA 18 DE JULIO",null,"CARRETA QUEMADA"]
[null,null,null,null,null,3,3321,null,"LA PAZ",null,null,null,null,null,null,null,null,null,null,null,null,null,null,null,null,"TOLEDO",null,null,null,"LOS PINOS",null,null,null,null,null,null,null,null,null,"MANANTIALES",null,null,null,"CHACRAS DE PAYSANDU",null,null,null,null,null,"PUEBLO NUEVO",null,"PARQUE JOSE LUIS",null,"COSTAS DE PEREIRA"]
[null,null,null,null,null,3,3322,null,"PANDO",null,null,null,null,null,null,null,null,null,null,null,null,null,null,null,null,"MONTES",null,null,null,"CHICO TORINO",null,null,null,null,null,null,null,null,null,"OCEAN PARK",null,null,null,"GALLINAL",null,null,null,null,null,"TAJAMARES DE LA PEDRERA",null,"COLONIA ITAPEBI",null,"COLONIA DELTA"]
[null,null,null,null,null,3,3323,null,"SANTA LUCIA",null,null,null,null,null,null,null,null,null,null,null,null,null,null,null,null,"SAN JOSE DE CARRASCO",null,null,null,"LA HORQUETA",null,null,null,null,null,null,null,null,null,"PLAYA GRANDE",null,null,null,"PUNTAS DE ARROYO NEGRO",null,null,null,null,null,"SAN ANTONIO",null,"GUAVIYU DE ARAPEY"]
[null,null,null,null,null,3,3324,null,"PIEDRAS DE AFILAR",null,null,null,null,null,null,null,null,null,null,null,null,null,null,null,null,"FRACC. SOBRE RUTA 74",null,null,null,"PLAYA AZUL",null,null,null,null,null,null,null,null,null,"PLAYA HERMOSA",null,null,null,"ESTACION PORVENIR",null,null,null,null,null,null,null,"RUSSO"]
[null,null,null,null,null,3,3325,null,"CUMBRES DE CARRASCO",null,null,null,null,null,null,null,null,null,null,null,null,null,null,null,null,"AGUAS CORRIENTES",null,null,null,"PLAYA BRITOPOLIS",null,null,null,null,null,null,null,null,null,"PLAYA VERDE",null,null,null,"CUCHILLA DE FUEGO",null,null,null,null,null,null,null,"PASO CEMENTERIO"]
[null,null,null,null,null,3,3326,null,"HARAS DEL LAGO",null,null,null,null,null,null,null,null,null,null,null,null,null,null,null,null,"BARRA DE CARRASCO",null,null,null,"PLAYA PARANT",null,null,null,null,null,null,null,null,null,"PUNTA BALLENA",null,null,null,"PUEBLO ALONZO",null,null,null,null,null,null,null,"OSIMANI Y LLERENA"]
[null,null,null,null,null,3,3327,null,"QUINTA LOS HORNEROS",null,null,null,null,null,null,null,null,null,null,null,null,null,null,null,null,"JUANICO",null,null,null,"PLAYA FOMENTO",null,null,null,null,null,null,null,null,null,"PUNTA COLORADA",null,null,null,"QUEGUAYAR"]
[null,null,null,null,null,3,3328,null,"LAS HIGUERITAS",null,null,null,null,null,null,null,null,null,null,null,null,null,null,null,null,"LA FLORESTA",null,null,null,"PUERTO INGLES",null,null,null,null,null,null,null,null,null,"PUNTA NEGRA",null,null,null,"TERMAS DE GUAVIYU"]
[null,null,null,null,null,3,3329,null,"SOFIA SANTOS",null,null,null,null,null,null,null,null,null,null,null,null,null,null,null,null,"ESTACION LA FLORESTA",null,null,null,"RADIAL HERNANDEZ",null,null,null,null,null,null,null,null,null,"RUTA 37 Y 9",null,null,null,"TERMAS DE ALMIRON"]
[null,null,null,null,null,3,3421,null,"PROGRESO",null,null,null,null,null,null,null,null,null,null,null,null,null,null,null,null,"LAS TOSCAS",null,null,null,"SAN PEDRO",null,null,null,null,null,null,null,null,null,"SAUCE DE PORTEZUELO"]
[null,null,null,null,null,3,3422,null,"SAN RAMON",null,null,null,null,null,null,null,null,null,null,null,null,null,null,null,null,"PARQUE CARRASCO",null,null,null,"SANTA ANA",null,null,null,null,null,null,null,null,null,"SAN VICENTE"]
[null,null,null,null,null,3,3521,null,"BARROS BLANCOS",null,null,null,null,null,null,null,null,null,null,null,null,null,null,null,null,"SALINAS",null,null,null,"SANTA REGINA",null,null,null,null,null,null,null,null,null,"BALNEARIO BUENOS AIRES"]
[null,null,null,null,null,3,3523,null,"COLONIA NICOLICH",null,null,null,null,null,null,null,null,null,null,null,null,null,null,null,null,"SAN ANTONIO",null,null,null,"ZAGARZAZU",null,null,null,null,null,null,null,null,null,"LAS CUMBRES"]
[null,null,null,null,null,3,3524,null,"JOAQUIN SUAREZ",null,null,null,null,null,null,null,null,null,null,null,null,null,null,null,null,"AEROPUERTO INTERNACIONAL DE CARRASCO",null,null,null,"ARRIVILLAGA",null,null,null,null,null,null,null,null,null,"LOS CORCHOS"]
[null,null,null,null,null,3,3525,null,"PASO CARRASCO",null,null,null,null,null,null,null,null,null,null,null,null,null,null,null,null,"SOLYMAR",null,null,null,"EL FARO",null,null,null,null,null,null,null,null,null,"SANTA MONICA"]
[null,null,null,null,null,3,3526,null,"SANTA ROSA",null,null,null,null,null,null,null,null,null,null,null,null,null,null,null,null,"VILLA AEROPARQUE",null,null,null,"LAGUNA DE LOS PATOS",null,null,null,null,null,null,null,null,null,"EDEN ROCK"]
[null,null,null,null,null,3,3527,null,"SAUCE",null,null,null,null,null,null,null,null,null,null,null,null,null,null,null,null,"CASTELLANOS",null,null,null,"JUAN JACKSON",null,null,null,null,null,null,null,null,null,"PARQUE MEDINA"]
[null,null,null,null,null,3,3528,null,"TALA",null,null,null,null,null,null,null,null,null,null,null,null,null,null,null,null,"BARRIO COPOLA",null,null,null,"PUEBLO GIL",null,null,null,null,null,null,null,null,null,"ARENAS DE JOSE IGNACIO"]
[null,null,null,null,null,3,3529,null,"VILLA CRESPO Y SAN ANDRES",null,null,null,null,null,null,null,null,null,null,null,null,null,null,null,null,"COSTA AZUL",null,null,null,"CERRO CARMELO",null,null,null,null,null,null,null,null,null,"LA SONRISA"]
[null,null,null,null,null,3,3529,null,"VILLA CRESPO Y SAN ANDRES",null,null,null,null,null,null,null,null,null,null,null,null,null,null,null,null,"COSTA Y GUILLAMON",null,null,null,"EL QUINTON",null,null,null,null,null,null,null,null,null,"EL QUIJOTE"]
[null,null,null,null,null,3,3530,null,"FRACC. CNO. ANDALUZ Y R.84",null,null,null,null,null,null,null,null,null,null,null,null,null,null,null,null,"EL PINAR",null,null,null,null,null,null,null,null,null,null,null,null,null,"LAGUNA BLANCA"]
[null,null,null,null,null,3,3621,null,"ATLANTIDA",null,null,null,null,null,null,null,null,null,null,null,null,null,null,null,null,"ESTACION MIGUES"]
[null,null,null,null,null,3,3622,null,"ESTACION ATLANTIDA",null,null,null,null,null,null,null,null,null,null,null,null,null,null,null,null,"PINAMAR - PINEPARK"]
[null,null,null,null,null,3,3625,null,"EMPALME OLMOS",null,null,null,null,null,null,null,null,null,null,null,null,null,null,null,null,"LAGOMAR"]
[null,null,null,null,null,3,3626,null,"MIGUES",null,null,null,null,null,null,null,null,null,null,null,null,null,null,null,null,"OLMOS"]
[null,null,null,null,null,3,3627,null,"PARQUE DEL PLATA",null,null,null,null,null,null,null,null,null,null,null,null,null,null,null,null,"PARADA CABRERA"]
[null,null,null,null,null,3,3628,null,"SAN BAUTISTA",null,null,null,null,null,null,null,null,null,null,null,null,null,null,null,null,"SAN LUIS"]
[null,null,null,null,null,3,3629,null,"SAN JACINTO",null,null,null,null,null,null,null,null,null,null,null,null,null,null,null,null,"SHANGRILA"]
[null,null,null,null,null,3,3630,null,"DR. FRANCISCO SOCA",null,null,null,null,null,null,null,null,null,null,null,null,null,null,null,null,"TOTORAL DEL SAUCE"]
[null,null,null,null,null,3,3631,null,"TOLEDO",null,null,null,null,null,null,null,null,null,null,null,null,null,null,null,null,"VILLA FELICIDAD"]
[null,null,null,null,null,3,3632,null,"MONTES",null,null,null,null,null,null,null,null,null,null,null,null,null,null,null,null,"VILLA PAZ S.A."]
[null,null,null,null,null,3,3633,null,"SAN JOSE DE CARRASCO",null,null,null,null,null,null,null,null,null,null,null,null,null,null,null,null,"VILLA SAN JOSE"]
[null,null,null,null,null,3,3634,null,"FRACC. SOBRE RUTA 74",null,null,null,null,null,null,null,null,null,null,null,null,null,null,null,null,"ESTACION TAPIA"]
[null,null,null,null,null,3,3721,null,"AGUAS CORRIENTES",null,null,null,null,null,null,null,null,null,null,null,null,null,null,null,null,"VILLA SAN FELIPE"]
[null,null,null,null,null,3,3722,null,"BARRA DE CARRASCO",null,null,null,null,null,null,null,null,null,null,null,null,null,null,null,null,"VILLA HADITA"]
[null,null,null,null,null,3,3723,null,"JUANICO",null,null,null,null,null,null,null,null,null,null,null,null,null,null,null,null,"PASO DE PACHE"]
[null,null,null,null,null,3,3724,null,"LA FLORESTA",null,null,null,null,null,null,null,null,null,null,null,null,null,null,null,null,"CITY GOLF"]
[null,null,null,null,null,3,3725,null,"ESTACION LA FLORESTA",null,null,null,null,null,null,null,null,null,null,null,null,null,null,null,null,"VIEJO MOLINO SAN BERNARDO"]
[null,null,null,null,null,3,3726,null,"LAS TOSCAS",null,null,null,null,null,null,null,null,null,null,null,null,null,null,null,null,"ESTANQUE DE PANDO"]
[null,null,null,null,null,3,3727,null,"PARQUE CARRASCO",null,null,null,null,null,null,null,null,null,null,null,null,null,null,null,null,"JARDINES DE PANDO"]
[null,null,null,null,null,3,3729,null,"SALINAS",null,null,null,null,null,null,null,null,null,null,null,null,null,null,null,null,"PASO ESPINOSA"]
[null,null,null,null,null,3,3730,null,"SAN ANTONIO",null,null,null,null,null,null,null,null,null,null,null,null,null,null,null,null,"ARAMINDA"]
[null,null,null,null,null,3,3731,null,"AEROPUERTO INTERNACIONAL DE CARRAS",null,null,null,null,null,null,null,null,null,null,null,null,null,null,null,null,"ARGENTINO"]
[null,null,null,null,null,3,3732,null,"SOLYMAR",null,null,null,null,null,null,null,null,null,null,null,null,null,null,null,null,"BELLO HORIZONTE"]
[null,null,null,null,null,3,3733,null,"VILLA AEROPARQUE",null,null,null,null,null,null,null,null,null,null,null,null,null,null,null,null,"BIARRITZ"]
[null,null,null,null,null,3,3823,null,"CASTELLANOS",null,null,null,null,null,null,null,null,null,null,null,null,null,null,null,null,"BOLIVAR"]
[null,null,null,null,null,3,3825,null,"BARRIO COPOLA",null,null,null,null,null,null,null,null,null,null,null,null,null,null,null,null,"CAMPO MILITAR"]
[null,null,null,null,null,3,3826,null,"COSTA AZUL",null,null,null,null,null,null,null,null,null,null,null,null,null,null,null,null,"CAPILLA DE CELLA"]
[null,null,null,null,null,3,3827,null,"COSTA Y GUILLAMON",null,null,null,null,null,null,null,null,null,null,null,null,null,null,null,null,"CRUZ DE LOS CAMINOS"]
[null,null,null,null,null,3,3828,null,"EL PINAR",null,null,null,null,null,null,null,null,null,null,null,null,null,null,null,null,"CUCHILLA ALTA"]
[null,null,null,null,null,3,3829,null,"ESTACION MIGUES",null,null,null,null,null,null,null,null,null,null,null,null,null,null,null,null,"EL BOSQUE"]
[null,null,null,null,null,3,3830,null,"PINAMAR - PINEPARK",null,null,null,null,null,null,null,null,null,null,null,null,null,null,null,null,"ESTACION PEDRERA"]
[null,null,null,null,null,3,3831,null,"LAGOMAR",null,null,null,null,null,null,null,null,null,null,null,null,null,null,null,null,"FORTIN DE SANTA ROSA"]
[null,null,null,null,null,3,3832,null,"OLMOS",null,null,null,null,null,null,null,null,null,null,null,null,null,null,null,null,"FRACC. PROGRESO"]
[null,null,null,null,null,3,3833,null,"PARADA CABRERA",null,null,null,null,null,null,null,null,null,null,null,null,null,null,null,null,"INSTITUTO ADVENTISTA"]
[null,null,null,null,null,3,3834,null,"SAN LUIS",null,null,null,null,null,null,null,null,null,null,null,null,null,null,null,null,"JAUREGUIBERRY"]
[null,null,null,null,null,3,3835,null,"SHANGRILA",null,null,null,null,null,null,null,null,null,null,null,null,null,null,null,null,"LA LUCHA"]
[null,null,null,null,null,3,3836,null,"TOTORAL DEL SAUCE",null,null,null,null,null,null,null,null,null,null,null,null,null,null,null,null,"LA MONTAÑESA"]
[null,null,null,null,null,3,3837,null,"VILLA FELICIDAD",null,null,null,null,null,null,null,null,null,null,null,null,null,null,null,null,"LOMAS DE SOLYMAR"]
[null,null,null,null,null,3,3838,null,"VILLA PAZ S.A.",null,null,null,null,null,null,null,null,null,null,null,null,null,null,null,null,"LOS TITANES"]
[null,null,null,null,null,3,3839,null,"VILLA SAN JOSE",null,null,null,null,null,null,null,null,null,null,null,null,null,null,null,null,"MARINDIA"]
[null,null,null,null,null,3,3840,null,"ESTACION TAPIA",null,null,null,null,null,null,null,null,null,null,null,null,null,null,null,null,"NEPTUNIA"]
[null,null,null,null,null,3,3880,null,"VILLA SAN FELIPE",null,null,null,null,null,null,null,null,null,null,null,null,null,null,null,null,"PASO DE LA CADENA"]
[null,null,null,null,null,3,3881,null,"VILLA HADITA",null,null,null,null,null,null,null,null,null,null,null,null,null,null,null,null,"PASO PALOMEQUE"]
[null,null,null,null,null,3,3882,null,"PASO DE PACHE",null,null,null,null,null,null,null,null,null,null,null,null,null,null,null,null,"PIEDRA DEL TORO"]
[null,null,null,null,null,3,3910,null,"CITY GOLF",null,null,null,null,null,null,null,null,null,null,null,null,null,null,null,null,"ESTACION PIEDRAS DE AFILAR"]
[null,null,null,null,null,3,3911,null,"VIEJO MOLINO SAN BERNARDO",null,null,null,null,null,null,null,null,null,null,null,null,null,null,null,null,"EL GALEON"]
[null,null,null,null,null,3,3912,null,"ESTANQUE DE PANDO",null,null,null,null,null,null,null,null,null,null,null,null,null,null,null,null,"SANTA ANA"]
[null,null,null,null,null,3,3913,null,"JARDINES DE PANDO",null,null,null,null,null,null,null,null,null,null,null,null,null,null,null,null,"SANTA LUCIA DEL ESTE"]
[null,null,null,null,null,3,3914,null,"PASO ESPINOSA",null,null,null,null,null,null,null,null,null,null,null,null,null,null,null,null,"SEIS HERMANOS"]
[null,null,null,null,null,3,3921,null,"ARAMINDA",null,null,null,null,null,null,null,null,null,null,null,null,null,null,null,null,"VILLA AREJO"]
[null,null,null,null,null,3,3922,null,"ARGENTINO",null,null,null,null,null,null,null,null,null,null,null,null,null,null,null,null,"VILLA ARGENTINA"]
[null,null,null,null,null,3,3925,null,"BELLO HORIZONTE",null,null,null,null,null,null,null,null,null,null,null,null,null,null,null,null,"VILLA PORVENIR"]
[null,null,null,null,null,3,3926,null,"BIARRITZ",null,null,null,null,null,null,null,null,null,null,null,null,null,null,null,null,"LA TUNA"]
[null,null,null,null,null,3,3927,null,"BOLIVAR",null,null,null,null,null,null,null,null,null,null,null,null,null,null,null,null,"GUAZU - VIRA"]
[null,null,null,null,null,3,3928,null,"CAMPO MILITAR",null,null,null,null,null,null,null,null,null,null,null,null,null,null,null,null,"COLINAS DE SOLYMAR"]
[null,null,null,null,null,3,3929,null,"CAPILLA DE CELLA",null,null,null,null,null,null,null,null,null,null,null,null,null,null,null,null,"BARRIO REMANSO"]
[null,null,null,null,null,3,3934,null,"CRUZ DE LOS CAMINOS",null,null,null,null,null,null,null,null,null,null,null,null,null,null,null,null,"VILLA EL TATO"]
[null,null,null,null,null,3,3935,null,"CUCHILLA ALTA",null,null,null,null,null,null,null,null,null,null,null,null,null,null,null,null,"VILLA SAN CONO"]
[null,null,null,null,null,3,3939,null,"EL BOSQUE",null,null,null,null,null,null,null,null,null,null,null,null,null,null,null,null,"VILLA JUANA"]
[null,null,null,null,null,3,3942,null,"ESTACION PEDRERA",null,null,null,null,null,null,null,null,null,null,null,null,null,null,null,null,"COLINAS DE CARRASCO"]
[null,null,null,null,null,3,3943,null,"FORTIN DE SANTA ROSA",null,null,null,null,null,null,null,null,null,null,null,null,null,null,null,null,"LOMAS DE CARRASCO"]
[null,null,null,null,null,3,3944,null,"FRACC. PROGRESO",null,null,null,null,null,null,null,null,null,null,null,null,null,null,null,null,"CARMEL"]
[null,null,null,null,null,3,3945,null,"INSTITUTO ADVENTISTA",null,null,null,null,null,null,null,null,null,null,null,null,null,null,null,null,"LA ASUNCION"]
[null,null,null,null,null,3,3946,null,"JAUREGUIBERRY",null,null,null,null,null,null,null,null,null,null,null,null,null,null,null,null,"QUINTAS DEL BOSQUE"]
[null,null,null,null,null,3,3948,null,"LA LUCHA",null,null,null,null,null,null,null,null,null,null,null,null,null,null,null,null,"ALTOS DE LA TAHONA"]
[null,null,null,null,null,3,3949,null,"LA MONTAÐESA"]
[null,null,null,null,null,3,3953,null,"LOMAS DE SOLYMAR"]
[null,null,null,null,null,3,3956,null,"LOS TITANES"]
[null,null,null,null,null,3,3957,null,"MARINDIA"]
[null,null,null,null,null,3,3959,null,"NEPTUNIA"]
[null,null,null,null,null,3,3962,null,"PASO DE LA CADENA"]
[null,null,null,null,null,3,3966,null,"PASO PALOMEQUE"]
[null,null,null,null,null,3,3968,null,"PIEDRA DEL TORO"]
[null,null,null,null,null,3,3969,null,"ESTACION PIEDRAS DE AFILAR"]
[null,null,null,null,null,3,3970,null,"EL GALEON"]
[null,null,null,null,null,3,3974,null,"SANTA ANA"]
[null,null,null,null,null,3,3975,null,"SANTA LUCIA DEL ESTE"]
[null,null,null,null,null,3,3978,null,"SEIS HERMANOS"]
[null,null,null,null,null,3,3979,null,"VILLA AREJO"]
[null,null,null,null,null,3,3980,null,"VILLA ARGENTINA"]
[null,null,null,null,null,3,3985,null,"LA TUNA"]
[null,null,null,null,null,3,3986,null,"GUAZU - VIRA"]
[null,null,null,null,null,3,3987,null,"COLINAS DE SOLYMAR"]
[null,null,null,null,null,3,3988,null,"BARRIO REMANSO"]
[null,null,null,null,null,3,3989,null,"VILLA EL TATO"]
[null,null,null,null,null,3,3990,null,"VILLA SAN CONO"]
[null,null,null,null,null,3,3991,null,"VILLA JUANA"]
[null,null,null,null,null,3,3992,null,"COLINAS DE CARRASCO"]
[null,null,null,null,null,3,3993,null,"LOMAS DE CARRASCO"]
[null,null,null,null,null,3,3994,null,"CARMEL"]
[null,null,null,null,null,3,3995,null,"LA ASUNCION"]
[null,null,null,null,null,3,3996,null,"QUINTAS DEL BOSQUE"]
[null,null,null,null,null,3,3997,null,"ALTOS DE LA TAHONA"]
[null,null,null,null,null,4,4220,null,"MELO"]
[null,null,null,null,null,4,4521,null,"FRAILE MUERTO"]
[null,null,null,null,null,4,4522,null,"RIO BRANCO"]
[null,null,null,null,null,4,4621,null,"TUPAMBAE"]
[null,null,null,null,null,4,4721,null,"ISIDORO NOBLIA"]
[null,null,null,null,null,4,4821,null,"ACEGUA"]
[null,null,null,null,null,4,4822,null,"BAÐADO DE MEDINA"]
[null,null,null,null,null,4,4823,null,"CENTURION"]
[null,null,null,null,null,4,4824,null,"CERRO DE LAS CUENTAS"]
[null,null,null,null,null,4,4825,null,"HIPODROMO"]
[null,null,null,null,null,4,4827,null,"PLACIDO ROSAS"]
[null,null,null,null,null,4,4828,null,"TOLEDO"]
[null,null,null,null,null,4,4829,null,"TRES ISLAS"]
[null,null,null,null,null,4,4830,null,"POBLADO URUGUAY"]
[null,null,null,null,null,4,4923,null,"ARBOLITO"]
[null,null,null,null,null,4,4924,null,"AREVALO"]
[null,null,null,null,null,4,4930,null,"CASERIO LAS CAÐAS"]
[null,null,null,null,null,4,4940,null,"ESPERANZA"]
[null,null,null,null,null,4,4943,null,"GETULIO VARGAS"]
[null,null,null,null,null,4,4948,null,"LA PEDRERA"]
[null,null,null,null,null,4,4949,null,"LAGO MERIN"]
[null,null,null,null,null,4,4952,null,"MANGRULLO"]
[null,null,null,null,null,4,4956,null,"NANDO"]
[null,null,null,null,null,4,4966,null,"QUEBRACHO"]
[null,null,null,null,null,4,4968,null,"RAMON TRIGO"]
[null,null,null,null,null,4,4981,null,"SOTO GORO"]
[null,null,null,null,null,4,4983,null,"BARRIO LOPEZ BENITEZ"]
[null,null,null,null,null,4,4987,null,"BARRIO LA VINCHUCA"]
[null,null,null,null,null,4,4988,null,"ARACHANIA"]
[null,null,null,null,null,4,4989,null,"ÐANGAPIRE"]
[null,null,null,null,null,5,5320,null,"COLONIA DEL SACRAMENTO"]
[null,null,null,null,null,5,5321,null,"CARMELO"]
[null,null,null,null,null,5,5323,null,"JUAN LACAZE"]
[null,null,null,null,null,5,5421,null,"NUEVA HELVECIA"]
[null,null,null,null,null,5,5422,null,"ROSARIO"]
[null,null,null,null,null,5,5422,null,"ROSARIO"]
[null,null,null,null,null,5,5423,null,"NUEVA PALMIRA"]
[null,null,null,null,null,5,5452,null,"PASO ANTOLIN"]
[null,null,null,null,null,5,5521,null,"OMBUES DE LAVALLE"]
[null,null,null,null,null,5,5522,null,"TARARIRAS"]
[null,null,null,null,null,5,5621,null,"COLONIA VALDENSE"]
[null,null,null,null,null,5,5622,null,"FLORENCIO SANCHEZ"]
[null,null,null,null,null,5,5721,null,"CONCHILLAS"]
[null,null,null,null,null,5,5722,null,"CASERIO EL CERRO"]
[null,null,null,null,null,5,5724,null,"LA PAZ"]
[null,null,null,null,null,5,5726,null,"RIACHUELO"]
[null,null,null,null,null,5,5727,null,"JUAN CARLOS CASEROS"]
[null,null,null,null,null,5,5798,null,"AGRACIADA"]
[null,null,null,null,null,5,5798,null,"AGRACIADA"]
[null,null,null,null,null,5,5821,null,"BOCA DEL ROSARIO"]
[null,null,null,null,null,5,5824,null,"CUFRE"]
[null,null,null,null,null,5,5826,null,"EL SEMILLERO"]
[null,null,null,null,null,5,5827,null,"ESTACION ESTANZUELA"]
[null,null,null,null,null,5,5829,null,"CERROS DE SAN JUAN"]
[null,null,null,null,null,5,5923,null,"CAMPANA"]
[null,null,null,null,null,5,5924,null,"ARTILLEROS"]
[null,null,null,null,null,5,5925,null,"BARKER"]
[null,null,null,null,null,5,5927,null,"EL ENSUEÐO"]
[null,null,null,null,null,5,5931,null,"BLANCA ARENA"]
[null,null,null,null,null,5,5932,null,"BRISAS DEL PLATA"]
[null,null,null,null,null,5,5938,null,"COLONIA COSMOPOLITA"]
[null,null,null,null,null,5,5940,null,"PARAJE MINUANO"]
[null,null,null,null,null,5,5951,null,"LOS PINOS"]
[null,null,null,null,null,5,5955,null,"CHICO TORINO"]
[null,null,null,null,null,5,5956,null,"LA HORQUETA"]
[null,null,null,null,null,5,5959,null,"PLAYA AZUL"]
[null,null,null,null,null,5,5960,null,"PLAYA BRITOPOLIS"]
[null,null,null,null,null,5,5961,null,"PLAYA PARANT"]
[null,null,null,null,null,5,5962,null,"PLAYA FOMENTO"]
[null,null,null,null,null,5,5964,null,"PUERTO INGLES"]
[null,null,null,null,null,5,5969,null,"RADIAL HERNANDEZ"]
[null,null,null,null,null,5,5977,null,"SAN PEDRO"]
[null,null,null,null,null,5,5979,null,"SANTA ANA"]
[null,null,null,null,null,5,5980,null,"SANTA REGINA"]
[null,null,null,null,null,5,5987,null,"ZAGARZAZU"]
[null,null,null,null,null,5,5989,null,"ARRIVILLAGA"]
[null,null,null,null,null,5,5993,null,"EL FARO"]
[null,null,null,null,null,5,5994,null,"LAGUNA DE LOS PATOS"]
[null,null,null,null,null,5,5996,null,"JUAN JACKSON"]
[null,null,null,null,null,5,5997,null,"PUEBLO GIL"]
[null,null,null,null,null,5,5998,null,"CERRO CARMELO"]
[null,null,null,null,null,5,5999,null,"EL QUINTON"]
[null,null,null,null,null,6,6220,null,"DURAZNO"]
[null,null,null,null,null,6,6421,null,"SARANDI DEL YI"]
[null,null,null,null,null,6,6621,null,"BLANQUILLO"]
[null,null,null,null,null,6,6622,null,"LA PALOMA"]
[null,null,null,null,null,6,6721,null,"CARLOS REYLES"]
[null,null,null,null,null,6,6722,null,"CENTENARIO"]
[null,null,null,null,null,6,6724,null,"SANTA BERNARDINA"]
[null,null,null,null,null,6,6790,null,"CERRO CHATO"]
[null,null,null,null,null,6,6821,null,"BAYGORRIA"]
[null,null,null,null,null,6,6922,null,"AGUAS BUENAS"]
[null,null,null,null,null,6,6924,null,"PUEBLO DE ALVAREZ"]
[null,null,null,null,null,6,6940,null,"FELICIANO"]
[null,null,null,null,null,6,6951,null,"OMBUES DE ORIBE"]
[null,null,null,null,null,6,6960,null,"ROSSELL Y RIUS"]
[null,null,null,null,null,6,6964,null,"SAN JORGE"]
[null,null,null,null,null,6,6972,null,"LAS PALMAS"]
[null,null,null,null,null,7,7320,null,"TRINIDAD"]
[null,null,null,null,null,7,7721,null,"ISMAEL CORTINAS"]
[null,null,null,null,null,7,7921,null,"ANDRESITO"]
[null,null,null,null,null,7,7925,null,"JUAN JOSE CASTRO"]
[null,null,null,null,null,7,7937,null,"LA CASILLA"]
[null,null,null,null,null,7,7938,null,"CERRO COLORADO"]
[null,null,null,null,null,8,8220,null,"FLORIDA"]
[null,null,null,null,null,8,8421,null,"SARANDI GRANDE"]
[null,null,null,null,null,8,8521,null,"CASUPA"]
[null,null,null,null,null,8,8621,null,"CARDAL"]
[null,null,null,null,null,8,8622,null,"FRAY MARCOS"]
[null,null,null,null,null,8,8623,null,"25 DE AGOSTO"]
[null,null,null,null,null,8,8624,null,"25 DE MAYO"]
[null,null,null,null,null,8,8721,null,"ALEJANDRO GALLINAL"]
[null,null,null,null,null,8,8722,null,"CAPILLA DEL SAUCE"]
[null,null,null,null,null,8,8723,null,"LA CRUZ"]
[null,null,null,null,null,8,8724,null,"NICO PEREZ"]
[null,null,null,null,null,8,8790,null,"CERRO CHATO"]
[null,null,null,null,null,8,8821,null,"CHAMIZO"]
[null,null,null,null,null,8,8822,null,"GOÐI"]
[null,null,null,null,null,8,8824,null,"MENDOZA CHICO"]
[null,null,null,null,null,8,8825,null,"REBOLEDO"]
[null,null,null,null,null,8,8896,null,"VALENTINES"]
[null,null,null,null,null,8,8923,null,"BERRONDO"]
[null,null,null,null,null,8,8930,null,"PUEBLO FERRER"]
[null,null,null,null,null,8,8933,null,"INDEPENDENCIA"]
[null,null,null,null,null,8,8938,null,"MONTECORAL"]
[null,null,null,null,null,8,8940,null,"PINTADO"]
[null,null,null,null,null,8,8941,null,"POLANCO DEL YI"]
[null,null,null,null,null,8,8944,null,"PUNTAS DE MACIEL"]
[null,null,null,null,null,8,8991,null,"ILLESCAS"]
[null,null,null,null,null,8,8992,null,"CASERIO LA FUNDACION"]
[null,null,null,null,null,8,8993,null,"LA MACANA"]
[null,null,null,null,null,8,8994,null,"ESTACION CAPILLA DEL SAUCE"]
[null,null,null,null,null,8,8995,null,"SAN GABRIEL"]
[null,null,null,null,null,9,9220,null,"MINAS"]
[null,null,null,null,null,9,9521,null,"JOSE BATLLE Y ORDOÐEZ"]
[null,null,null,null,null,9,9521,null,"JOSE BATLLE Y ORDOÐEZ"]
[null,null,null,null,null,9,9522,null,"JOSE PEDRO VARELA"]
[null,null,null,null,null,9,9621,null,"MARISCALA"]
[null,null,null,null,null,9,9622,null,"SOLIS DE MATAOJO"]
[null,null,null,null,null,9,9721,null,"PIRARAJA"]
[null,null,null,null,null,9,9722,null,"ZAPICAN"]
[null,null,null,null,null,9,9821,null,"COLON"]
[null,null,null,null,null,9,9823,null,"ARAMENDIA"]
[null,null,null,null,null,9,9924,null,"BLANES VIALE"]
[null,null,null,null,null,9,9928,null,"19 DE JUNIO"]
[null,null,null,null,null,9,9931,null,"ESTACION SOLIS"]
[null,null,null,null,null,9,9932,null,"GAETAN"]
[null,null,null,null,null,9,9942,null,"POLANCO NORTE"]
[null,null,null,null,null,9,9955,null,"VILLA DEL ROSARIO"]
[null,null,null,null,null,9,9956,null,"VILLA SERRANA"]
[null,null,null,null,null,9,9957,null,"BARRIO LA CORONILLA - ANCAP"]
[null,null,null,null,null,9,9958,null,"SAN FRANCISCO DE LAS SIERRAS"]
[null,null,null,null,null,9,9991,null,"ILLESCAS"]
[null,null,null,null,null,10,10320,null,"MALDONADO"]
[null,null,null,null,null,10,10321,null,"SAN CARLOS"]
[null,null,null,null,null,10,10521,null,"AIGUA"]
[null,null,null,null,null,10,10522,null,"PAN DE AZUCAR"]
[null,null,null,null,null,10,10523,null,"PIRIAPOLIS"]
[null,null,null,null,null,10,10524,null,"PUNTA DEL ESTE"]
[null,null,null,null,null,10,10821,null,"CERRO PELADO"]
[null,null,null,null,null,10,10822,null,"GARZON"]
[null,null,null,null,null,10,10823,null,"GERONA"]
[null,null,null,null,null,10,10825,null,"LAS FLORES - ESTACION"]
[null,null,null,null,null,10,10826,null,"LOS TALAS"]
[null,null,null,null,null,10,10827,null,"NUEVA CARRARA"]
[null,null,null,null,null,10,10828,null,"SOLIS"]
[null,null,null,null,null,10,10829,null,"PUEBLO SOLIS"]
[null,null,null,null,null,10,10830,null,"PINARES - LAS DELICIAS"]
[null,null,null,null,null,10,10831,null,"CHIHUAHUA"]
[null,null,null,null,null,10,10832,null,"VILLA DELIA"]
[null,null,null,null,null,10,10833,null,"SAN RAFAEL - EL PLACER"]
[null,null,null,null,null,10,10924,null,"BARRIO HIPODROMO"]
[null,null,null,null,null,10,10925,null,"LOS AROMOS"]
[null,null,null,null,null,10,10926,null,"BELLA VISTA"]
[null,null,null,null,null,10,10929,null,"CANTERAS DE MARELLI"]
[null,null,null,null,null,10,10931,null,"CERROS AZULES"]
[null,null,null,null,null,10,10934,null,"EL CHORRO"]
[null,null,null,null,null,10,10935,null,"EL EDEN"]
[null,null,null,null,null,10,10936,null,"EL TESORO"]
[null,null,null,null,null,10,10939,null,"FARO JOSE IGNACIO"]
[null,null,null,null,null,10,10940,null,"GREGORIO AZNAREZ"]
[null,null,null,null,null,10,10942,null,"LA BARRA"]
[null,null,null,null,null,10,10944,null,"LA CAPUERA"]
[null,null,null,null,null,10,10945,null,"LAS FLORES"]
[null,null,null,null,null,10,10947,null,"MANANTIALES"]
[null,null,null,null,null,10,10948,null,"OCEAN PARK"]
[null,null,null,null,null,10,10953,null,"PLAYA GRANDE"]
[null,null,null,null,null,10,10954,null,"PLAYA HERMOSA"]
[null,null,null,null,null,10,10955,null,"PLAYA VERDE"]
[null,null,null,null,null,10,10956,null,"PUNTA BALLENA"]
[null,null,null,null,null,10,10958,null,"PUNTA COLORADA"]
[null,null,null,null,null,10,10959,null,"PUNTA NEGRA"]
[null,null,null,null,null,10,10962,null,"RUTA 37 Y 9"]
[null,null,null,null,null,10,10969,null,"SAUCE DE PORTEZUELO"]
[null,null,null,null,null,10,10972,null,"SAN VICENTE"]
[null,null,null,null,null,10,10973,null,"BALNEARIO BUENOS AIRES"]
[null,null,null,null,null,10,10980,null,"LAS CUMBRES"]
[null,null,null,null,null,10,10981,null,"LOS CORCHOS"]
[null,null,null,null,null,10,10982,null,"SANTA MONICA"]
[null,null,null,null,null,10,10983,null,"EDEN ROCK"]
[null,null,null,null,null,10,10984,null,"PARQUE MEDINA"]
[null,null,null,null,null,10,10985,null,"ARENAS DE JOSE IGNACIO"]
[null,null,null,null,null,10,10986,null,"LA SONRISA"]
[null,null,null,null,null,10,10987,null,"EL QUIJOTE"]
[null,null,null,null,null,10,10988,null,"LAGUNA BLANCA"]
[null,null,null,null,null,11,11120,null,"PAYSANDU"]
[null,null,null,null,null,11,11521,null,"GUICHON"]
[null,null,null,null,null,11,11522,null,"NUEVO PAYSANDU"]
[null,null,null,null,null,11,11621,null,"QUEBRACHO"]
[null,null,null,null,null,11,11695,null,"TAMBORES"]
[null,null,null,null,null,11,11721,null,"LORENZO GEYRES"]
[null,null,null,null,null,11,11722,null,"MERINOS"]
[null,null,null,null,null,11,11723,null,"PORVENIR"]
[null,null,null,null,null,11,11821,null,"ARBOLITO"]
[null,null,null,null,null,11,11822,null,"BEISSO"]
[null,null,null,null,null,11,11823,null,"CASABLANCA"]
[null,null,null,null,null,11,11824,null,"CERRO CHATO"]
[null,null,null,null,null,11,11825,null,"CONSTANCIA"]
[null,null,null,null,null,11,11826,null,"MORATO"]
[null,null,null,null,null,11,11827,null,"PIEDRAS COLORADAS"]
[null,null,null,null,null,11,11828,null,"PIÐERA"]
[null,null,null,null,null,11,11830,null,"SAN FELIX"]
[null,null,null,null,null,11,11831,null,"VILLA MARIA (TIATUCURA)"]
[null,null,null,null,null,11,11894,null,"PIEDRA SOLA"]
[null,null,null,null,null,11,11922,null,"ARAUJO"]
[null,null,null,null,null,11,11924,null,"BELLA VISTA"]
[null,null,null,null,null,11,11925,null,"CAÐADA DEL PUEBLO"]
[null,null,null,null,null,11,11926,null,"CHAPICUY"]
[null,null,null,null,null,11,11929,null,"EL EUCALIPTUS"]
[null,null,null,null,null,11,11932,null,"PUEBLO FEDERACION"]
[null,null,null,null,null,11,11935,null,"LA TENTACION"]
[null,null,null,null,null,11,11937,null,"ORGOROSO"]
[null,null,null,null,null,11,11945,null,"CUCHILLA DE BURICAYUPI"]
[null,null,null,null,null,11,11947,null,"SOTO"]
[null,null,null,null,null,11,11950,null,"ZEBALLOS"]
[null,null,null,null,null,11,11951,null,"CHACRAS DE PAYSANDU"]
[null,null,null,null,null,11,11953,null,"GALLINAL"]
[null,null,null,null,null,11,11954,null,"PUNTAS DE ARROYO NEGRO"]
[null,null,null,null,null,11,11955,null,"ESTACION PORVENIR"]
[null,null,null,null,null,11,11956,null,"CUCHILLA DE FUEGO"]
[null,null,null,null,null,11,11957,null,"PUEBLO ALONZO"]
[null,null,null,null,null,11,11958,null,"QUEGUAYAR"]
[null,null,null,null,null,11,11959,null,"TERMAS DE GUAVIYU"]
[null,null,null,null,null,11,11960,null,"TERMAS DE ALMIRON"]
[null,null,null,null,null,12,12320,null,"FRAY BENTOS"]
[null,null,null,null,null,12,12421,null,"YOUNG"]
[null,null,null,null,null,12,12621,null,"NUEVO BERLIN"]
[null,null,null,null,null,12,12622,null,"SAN JAVIER"]
[null,null,null,null,null,12,12722,null,"BARRIO ANGLO"]
[null,null,null,null,null,12,12723,null,"GRECCO"]
[null,null,null,null,null,12,12792,null,"MERINOS"]
[null,null,null,null,null,12,12797,null,"ALGORTA"]
[null,null,null,null,null,12,12821,null,"EL OMBU"]
[null,null,null,null,null,12,12823,null,"PASO DE LOS MELLIZOS"]
[null,null,null,null,null,12,12824,null,"SARANDI DE NAVARRO"]
[null,null,null,null,null,12,12826,null,"VILLA GENERAL BORGES"]
[null,null,null,null,null,12,12827,null,"VILLA MARIA"]
[null,null,null,null,null,12,12828,null,"LAS CAÐAS"]
[null,null,null,null,null,12,12923,null,"BELLACO"]
[null,null,null,null,null,12,12930,null,"LOS ARRAYANES"]
[null,null,null,null,null,12,12932,null,"MENAFRA"]
[null,null,null,null,null,12,12945,null,"TRES QUINTAS"]
[null,null,null,null,null,13,13220,null,"RIVERA"]
[null,null,null,null,null,13,13521,null,"MINAS DE CORRALES"]
[null,null,null,null,null,13,13522,null,"TRANQUERAS"]
[null,null,null,null,null,13,13621,null,"VICHADERO"]
[null,null,null,null,null,13,13721,null,"SANTA TERESA"]
[null,null,null,null,null,13,13822,null,"ARROYO BLANCO"]
[null,null,null,null,null,13,13823,null,"PASO ATAQUES"]
[null,null,null,null,null,13,13824,null,"CERRO PELADO"]
[null,null,null,null,null,13,13830,null,"PASO HOSPITAL"]
[null,null,null,null,null,13,13831,null,"LAPUENTE"]
[null,null,null,null,null,13,13832,null,"LAS FLORES"]
[null,null,null,null,null,13,13833,null,"MOIRONES"]
[null,null,null,null,null,13,13836,null,"LA PEDRERA"]
[null,null,null,null,null,13,13837,null,"MANDUBI"]
[null,null,null,null,null,13,13838,null,"LAGUNON"]
[null,null,null,null,null,13,13922,null,"AMARILLO"]
[null,null,null,null,null,13,13929,null,"CERRILLADA"]
[null,null,null,null,null,13,13931,null,"CERROS DE LA CALERA"]
[null,null,null,null,null,13,13940,null,"LAGOS DEL NORTE"]
[null,null,null,null,null,13,13943,null,"MASOLLER"]
[null,null,null,null,null,14,14320,null,"ROCHA"]
[null,null,null,null,null,14,14421,null,"CASTILLOS"]
[null,null,null,null,null,14,14422,null,"LASCANO"]
[null,null,null,null,null,14,14521,null,"CHUY"]
[null,null,null,null,null,14,14621,null,"CEBOLLATI"]
[null,null,null,null,null,14,14622,null,"VELAZQUEZ"]
[null,null,null,null,null,14,14721,null,"18 DE JULIO"]
[null,null,null,null,null,14,14723,null,"SAN LUIS AL MEDIO"]
[null,null,null,null,null,14,14821,null,"LA AGUADA Y COSTA AZUL"]
[null,null,null,null,null,14,14822,null,"19 DE ABRIL"]
[null,null,null,null,null,14,14823,null,"LA CORONILLA"]
[null,null,null,null,null,14,14826,null,"BARRIO PEREIRA"]
[null,null,null,null,null,14,14921,null,"AGUAS DULCES"]
[null,null,null,null,null,14,14923,null,"BARRA DEL CHUY"]
[null,null,null,null,null,14,14926,null,"BARRIO TORRES"]
[null,null,null,null,null,14,14928,null,"CABO POLONIO"]
[null,null,null,null,null,14,14929,null,"CAPACHO"]
[null,null,null,null,null,14,14940,null,"BARRA DE VALIZAS"]
[null,null,null,null,null,14,14941,null,"LA ESMERALDA"]
[null,null,null,null,null,14,14942,null,"LA PEDRERA"]
[null,null,null,null,null,14,14948,null,"PARALLE"]
[null,null,null,null,null,14,14953,null,"PUERTO DE LOS BOTES"]
[null,null,null,null,null,14,14957,null,"PUIMAYEN"]
[null,null,null,null,null,14,14959,null,"ARACHANIA"]
[null,null,null,null,null,14,14960,null,"PTA. RUBIA Y STA. ISABEL DE LA PED"]
[null,null,null,null,null,14,14962,null,"PUNTA DEL DIABLO"]
[null,null,null,null,null,14,14963,null,"PALMARES DE LA CORONILLA"]
[null,null,null,null,null,14,14964,null,"LA RIBIERA"]
[null,null,null,null,null,14,14965,null,"PUENTE VALIZAS"]
[null,null,null,null,null,14,14966,null,"OCEANIA DEL POLONIO"]
[null,null,null,null,null,14,14967,null,"PUEBLO NUEVO"]
[null,null,null,null,null,14,14968,null,"TAJAMARES DE LA PEDRERA"]
[null,null,null,null,null,14,14969,null,"SAN ANTONIO"]
[null,null,null,null,null,15,15120,null,"SALTO"]
[null,null,null,null,null,15,15522,null,"BELEN"]
[null,null,null,null,null,15,15523,null,"CONSTITUCION"]
[null,null,null,null,null,15,15721,null,"FERNANDEZ"]
[null,null,null,null,null,15,15722,null,"SAN ANTONIO"]
[null,null,null,null,null,15,15723,null,"CHACRAS DE BELEN"]
[null,null,null,null,null,15,15821,null,"ALBISU"]
[null,null,null,null,null,15,15822,null,"BIASSINI"]
[null,null,null,null,null,15,15823,null,"CAMPO DE TODOS"]
[null,null,null,null,null,15,15824,null,"CAYETANO"]
[null,null,null,null,null,15,15825,null,"CUCHILLA DE GUAVIYU"]
[null,null,null,null,null,15,15827,null,"TERMAS DEL DAYMAN"]
[null,null,null,null,null,15,15828,null,"PALOMAS"]
[null,null,null,null,null,15,15829,null,"PASO DEL PARQUE DEL DAYMAN"]
[null,null,null,null,null,15,15830,null,"QUINTANA"]
[null,null,null,null,null,15,15831,null,"SARANDI DE ARAPEY"]
[null,null,null,null,null,15,15832,null,"SAUCEDO"]
[null,null,null,null,null,15,15924,null,"ARENITAS BLANCAS"]
[null,null,null,null,null,15,15931,null,"CELESTE"]
[null,null,null,null,null,15,15935,null,"CERROS DE VERA"]
[null,null,null,null,null,15,15939,null,"GARIBALDI"]
[null,null,null,null,null,15,15943,null,"TERMAS DEL ARAPEY"]
[null,null,null,null,null,15,15944,null,"LAS FLORES"]
[null,null,null,null,null,15,15945,null,"LAURELES"]
[null,null,null,null,null,15,15946,null,"LLUVERAS"]
[null,null,null,null,null,15,15949,null,"MIGLIARO"]
[null,null,null,null,null,15,15950,null,"OLIVERA"]
[null,null,null,null,null,15,15957,null,"PASO DE LAS PIEDRAS DE ARERUNGUA"]
[null,null,null,null,null,15,15959,null,"PUNTAS DE VALENTIN"]
[null,null,null,null,null,15,15965,null,"RINCON DE VALENTIN"]
[null,null,null,null,null,15,15966,null,"COLONIA 18 DE JULIO"]
[null,null,null,null,null,15,15969,null,"PARQUE JOSE LUIS"]
[null,null,null,null,null,15,15970,null,"COLONIA ITAPEBI"]
[null,null,null,null,null,15,15971,null,"GUAVIYU DE ARAPEY"]
[null,null,null,null,null,15,15972,null,"RUSSO"]
[null,null,null,null,null,15,15973,null,"PASO CEMENTERIO"]
[null,null,null,null,null,15,15974,null,"OSIMANI Y LLERENA"]
[null,null,null,null,null,16,16220,null,"SAN JOSE DE MAYO"]
[null,null,null,null,null,16,16421,null,"LIBERTAD"]
[null,null,null,null,null,16,16521,null,"DELTA DEL TIGRE Y VILLAS"]
[null,null,null,null,null,16,16521,null,"DELTA DEL TIGRE Y VILLAS"]
[null,null,null,null,null,16,16621,null,"RODRIGUEZ"]
[null,null,null,null,null,16,16721,null,"ITUZAINGO"]
[null,null,null,null,null,16,16722,null,"SANTA MONICA"]
[null,null,null,null,null,16,16821,null,"PUNTAS DE VALDEZ"]
[null,null,null,null,null,16,16822,null,"GONZALEZ"]
[null,null,null,null,null,16,16823,null,"MAL ABRIGO"]
[null,null,null,null,null,16,16824,null,"PLAYA PASCUAL"]
[null,null,null,null,null,16,16824,null,"PLAYA PASCUAL"]
[null,null,null,null,null,16,16825,null,"18 DE JULIO (PUEBLO NUEVO)"]
[null,null,null,null,null,16,16826,null,"RAFAEL PERAZA"]
[null,null,null,null,null,16,16827,null,"RAIGON"]
[null,null,null,null,null,16,16829,null,"SAFICI (PARQUE POSTEL)"]
[null,null,null,null,null,16,16923,null,"JUAN SOLER"]
[null,null,null,null,null,16,16924,null,"BOCA DEL CUFRE"]
[null,null,null,null,null,16,16925,null,"CAPURRO"]
[null,null,null,null,null,16,16926,null,"VILLA MARIA"]
[null,null,null,null,null,16,16929,null,"ECILDA PAULLIER"]
[null,null,null,null,null,16,16932,null,"KIYU-ORDEIG"]
[null,null,null,null,null,16,16933,null,"LA BOYADA"]
[null,null,null,null,null,16,16939,null,"CAÐADA GRANDE"]
[null,null,null,null,null,16,16945,null,"RINCON DEL PINO"]
[null,null,null,null,null,16,16946,null,"SAN GREGORIO"]
[null,null,null,null,null,16,16947,null,"SCAVINO"]
[null,null,null,null,null,16,16950,null,"MONTE GRANDE"]
[null,null,null,null,null,16,16960,null,"CERAMICAS DEL SUR"]
[null,null,null,null,null,16,16961,null,"RADIAL"]
[null,null,null,null,null,16,16962,null,"COLOLO TINOSA"]
[null,null,null,null,null,16,16963,null,"MANGRULLO"]
[null,null,null,null,null,16,16964,null,"CARRETA QUEMADA"]
[null,null,null,null,null,16,16965,null,"COSTAS DE PEREIRA"]
[null,null,null,null,null,16,16966,null,"COLONIA DELTA"]
[null,null,null,null,null,17,17220,null,"MERCEDES"]
[null,null,null,null,null,17,17321,null,"DOLORES"]
[null,null,null,null,null,17,17521,null,"CARDONA"]
[null,null,null,null,null,17,17621,null,"JOSE ENRIQUE RODO"]
[null,null,null,null,null,17,17622,null,"PALMITAS"]
[null,null,null,null,null,17,17623,null,"VILLA SORIANO"]
[null,null,null,null,null,17,17624,null,"PALMAR"]
[null,null,null,null,null,17,17721,null,"EGAÐA"]
[null,null,null,null,null,17,17722,null,"SANTA CATALINA"]
[null,null,null,null,null,17,17798,null,"AGRACIADA"]
[null,null,null,null,null,17,17798,null,"AGRACIADA"]
[null,null,null,null,null,17,17822,null,"CASTILLOS"]
[null,null,null,null,null,17,17823,null,"RISSO"]
[null,null,null,null,null,17,17824,null,"SACACHISPAS"]
[null,null,null,null,null,17,17825,null,"CAÐADA NIETO"]
[null,null,null,null,null,17,17927,null,"CUCHILLA DEL PERDIDO"]
[null,null,null,null,null,17,17928,null,"EL TALA"]
[null,null,null,null,null,17,17930,null,"LA CONCORDIA"]
[null,null,null,null,null,17,17931,null,"LA LOMA"]
[null,null,null,null,null,17,17939,null,"PALO SOLO"]
[null,null,null,null,null,17,17950,null,"CHACRAS DE DOLORES"]
[null,null,null,null,null,17,17951,null,"COLONIA CONCORDIA"]
[null,null,null,null,null,17,17952,null,"PERSEVERANO"]
[null,null,null,null,null,17,17993,null,"LARES"]
[null,null,null,null,null,18,18220,null,"TACUAREMBO"]
[null,null,null,null,null,18,18321,null,"PASO DE LOS TOROS"]
[null,null,null,null,null,18,18521,null,"SAN GREGORIO DE POLANCO"]
[null,null,null,null,null,18,18695,null,"TAMBORES"]
[null,null,null,null,null,18,18721,null,"ACHAR"]
[null,null,null,null,null,18,18722,null,"ANSINA"]
[null,null,null,null,null,18,18723,null,"CURTINA"]
[null,null,null,null,null,18,18724,null,"PASO DEL CERRO"]
[null,null,null,null,null,18,18822,null,"CLARA"]
[null,null,null,null,null,18,18825,null,"CUCHILLA DEL OMBU"]
[null,null,null,null,null,18,18827,null,"LA HILERA"]
[null,null,null,null,null,18,18829,null,"PASO BONILLA"]
[null,null,null,null,null,18,18830,null,"PUEBLO DE ARRIBA"]
[null,null,null,null,null,18,18831,null,"PUEBLO DEL BARRO"]
[null,null,null,null,null,18,18833,null,"RINCON DEL BONETE"]
[null,null,null,null,null,18,18834,null,"BALNEARIO IPORA"]
[null,null,null,null,null,18,18894,null,"PIEDRA SOLA"]
[null,null,null,null,null,18,18928,null,"CHAMBERLAIN"]
[null,null,null,null,null,18,18931,null,"CUCHILLA DE PERALTA"]
[null,null,null,null,null,18,18937,null,"LA PEDRERA"]
[null,null,null,null,null,18,18952,null,"LAURELES"]
[null,null,null,null,null,18,18963,null,"MONTEVIDEO CHICO"]
[null,null,null,null,null,18,18971,null,"CERRO DE PASTOREO"]
[null,null,null,null,null,18,18980,null,"SAUCE DE BATOVI"]
[null,null,null,null,null,18,18990,null,"PUNTAS DE CINCO SAUCES"]
[null,null,null,null,null,18,18991,null,"RINCON DE PEREIRA"]
[null,null,null,null,null,18,18992,null,"PUNTA DE CARRETERA"]
[null,null,null,null,null,18,18993,null,"CRUZ DE LOS CAMINOS"]
[null,null,null,null,null,19,19220,null,"TREINTA Y TRES"]
[null,null,null,null,null,19,19521,null,"SANTA CLARA DE OLIMAR"]
[null,null,null,null,null,19,19522,null,"VERGARA"]
[null,null,null,null,null,19,19721,null,"ARROZAL TREINTA Y TRES"]
[null,null,null,null,null,19,19722,null,"GRAL. ENRIQUE MARTINEZ"]
[null,null,null,null,null,19,19723,null,"VILLA SARA"]
[null,null,null,null,null,19,19790,null,"CERRO CHATO"]
[null,null,null,null,null,19,19822,null,"ISLA PATRULLA (MARIA ISABEL)"]
[null,null,null,null,null,19,19896,null,"VALENTINES"]
[null,null,null,null,null,19,19922,null,"POBLADO ALONZO"]
[null,null,null,null,null,19,19924,null,"ARROCERA RINCON"]
[null,null,null,null,null,19,19940,null,"ARROCERA LOS CEIBOS"]
[null,null,null,null,null,19,19941,null,"MARIA ALBINA"]
[null,null,null,null,null,19,19942,null,"MENDIZABAL (EL ORO)"]
[null,null,null,null,null,19,19947,null,"PUNTAS DEL PARAO"]
[null,null,null,null,null,19,19955,null,"VILLA PASSANO"]
[null,null,null,null,null,19,19956,null,"EJIDO DE TREINTA Y TRES"]
[null,null,null,null,null,19,19960,null,"EL BELLACO"]
[null,null,null,null,null,19,19961,null,"ARROCERA LOS TEROS"]
[null,null,null,null,null,19,19962,null,"ARROCERA BONOMO"]
[null,null,null,null,null,19,19963,null,"ARROCERA EL TIGRE"]
[null,null,null,null,null,19,19964,null,"ARROCERA LA CATUMBERA"]
[null,null,null,null,null,19,19965,null,"ARROCERA LA QUERENCIA"]
[null,null,null,null,null,19,19966,null,"ARROCERA LAS PALMAS"]
[null,null,null,null,null,19,19967,null,"ARROCERA MINI"]
[null,null,null,null,null,19,19968,null,"ARROCERA PROCIPA"]
[null,null,null,null,null,19,19969,null,"ARROCERA SAN FERNANDO"]
[null,null,null,null,null,19,19970,null,"ARROCERA SANTA FE"]
[null,null,null,null,null,19,19971,null,"ARROCERA ZAPATA"]

{"sheet":"Identificación","index":2,"n_rows":38,"n_cols":7,"rows_kept":38,"cut":false,"hidden":false,"merged":[[40,1,40,6],[23,1,23,5],[15,1,15,3],[13,1,13,3],[17,1,17,3],[19,1,19,3],[21,1,21,3],[17,4,17,6],[13,4,13,6],[32,2,32,4],[33,2,33,4],[34,2,34,4],[24,1,24,2],[25,1,25,2],[26,1,26,2],[28,1,28,5],[24,3,24,6],[25,3,25,6],[26,3,26,6],[21,4,21,6],[19,4,19,6],[38,1,38,6],[37,2,37,4],[29,1,29,2],[30,1,30,2],[29,3,29,6],[30,3,30,6],[35,2,35,4],[36,2,36,4]]}
[]
[]
[]
[]
[]
[]
[]
[]
[]
[]
[]
[null,"IDENTIFICACIÓN GENERAL DE LA INICIATIVA"]
[]
[null,"Nombre de la Iniciativa:"]
[]
[null,"Departamento de referencia:"]
[]
[null,"Localidad:"]
[]
[null,"Pueblo/Paraje:"]
[]
[null,"Mesa de Desarrollo Rural de referencia:"]
[]
[null,"Referente de la Iniciativa:"]
[null,"Nombre y Apellido:"]
[null,"Teléfono:"]
[null,"Correo electrónico:"]
[]
[null,"Organización contratante:"]
[null,"Nombre:"]
[null,"RUT"]
[null,"Representantes Legales Organización contratante:"]
[null,null,"Nombre y Apellido",null,null,"Cédula","Cargo"]
[null,"1."]
[null,"2."]
[null,"3."]
[null,"4."]
[null,"5."]

{"sheet":"Descripción General","index":3,"n_rows":51,"n_cols":2,"rows_kept":51,"cut":false,"hidden":false,"merged":[[51,1,51,2],[50,1,50,2],[47,1,47,2],[22,1,22,2],[23,1,23,2],[25,1,25,2],[26,1,26,2],[30,1,30,2],[31,1,31,2],[38,1,38,2],[39,1,39,2],[41,1,41,2],[44,1,44,2],[45,1,45,2],[42,1,42,2],[48,1,48,2],[20,1,20,2],[35,1,35,2],[36,1,36,2],[13,1,13,2],[16,1,16,2],[14,1,14,2],[19,1,19,2],[17,1,17,2]]}
[]
[]
[]
[]
[]
[]
[]
[]
[]
[]
[]
[null,"ANTECEDENTES Y DIAGNÓSTICO"]
[]
[null,"¿Cuáles son los principales lugares de encuentro y qué actividades realizan las/os jóvenes en la zona?"]
[]
[]
[null,"¿Qué instituciones y/u organizaciones (educativas, culturas, productivas, deportivas, de recreación o esparcimiento, públicas agrarias o no, etc.) identifican como de importancia para las/os jóvenes de la zona?"]
[]
[]
[null,"¿Qué medios de comunicación identifican como de importancia las/os jóvenes de la zona?"]
[]
[]
[null,"Trayectoria de trabajo del grupo:\n• ¿Desde cuando se juntan? (año de surgimiento del grupo) \n• ¿Ya han realizado actividades juntos/as? \n• ¿Comenzaron a juntarse a partir de esta convocatoria?"]
[]
[]
[null,"Diagnóstico y situación de partida:\n• Describan el problema/interés a abordar.\n• Mencionen si la iniciativa cuenta con antecedentes o si se trata de una propuesta nueva.\n• Indiquen las características del territorio de ejecución de la iniciativa (físicas, productivas, comerciales, culturales, vínculo con el territorio de referencia y/o otras organizaciones)"]
[]
[]
[null,"JUSTIFICACIÓN"]
[]
[null,"¿Por qué vale la pena realizar esta iniciativa? ¿Por qué es necesario resolver el problema detectado?"]
[]
[]
[null,"ESTRATEGIA DE TRABAJO"]
[]
[null,"Para la iniciativa que presentan, ¿cómo la van a hacer? ¿con quienes? ¿dónde? "]
[]
[]
[null,"Para la iniciativa que se presenta, ¿piensan desarrollar acciones que faciliten o promuevan que exista igualdad entre varones y mujeres dentro del grupo o en su zona? ¿Cuáles?"]
[]
[]
[null,"Los actores relacionados a la iniciativa, especialmente las/os beneficiarias/os directos: \n¿Han participado de forma conjunta en la identificación del problema o situación a potenciar y/o de la solución propuesta? \n¿Cómo será el funcionamiento del espacio de coordinación de la iniciativa y el rol de cada participante involucrado? "]
[]
[]
[null,"¿Existe alguna estrategia de incidencia en la agenda de la zona?"]
[]
[]
[null,"Describan si algunos de los resultados obtenidos por la iniciativa puedan continuar desarrollándose una vez que culmine la ejecución de los fondos."]
[]
[]
[null,"¿Consideran que la iniciativa pudiera ser replicado en otros territorios, por otros grupos, etc.?\nDescriba brevemente."]

{"sheet":"ObjetivosActividadesPresupuesto","index":4,"n_rows":37,"n_cols":13,"rows_kept":37,"cut":false,"hidden":false,"merged":[[24,3,24,7],[25,3,25,7],[36,4,36,5],[29,6,29,7],[8,1,8,3],[23,1,25,1],[17,1,19,1],[20,1,22,1],[17,2,19,2],[20,2,22,2],[23,2,25,2],[16,3,16,7],[17,3,17,7],[18,3,18,7],[19,3,19,7],[20,3,20,7],[14,1,14,7],[13,1,13,7],[21,3,21,7],[22,3,22,7],[23,3,23,7]]}
[]
[]
[]
[]
[]
[]
[]
[]
[]
[]
[]
[null,"OBJETIVOS"]
[]
[null,"Objetivo General:"]
[]
[]
[null,null,"Objetivo Específico (Máximo 3)","Resultados esperados de la propuesta\n(Máximo 3 por cada objetivo)"]
[null,"OE 1."]
[]
[]
[null,"OE 2."]
[]
[]
[null,"OE 3."]
[]
[]
[]
[]
[null,"ACTIVIDADES"]
[]
[null,"Nº Act.","Descripción de la actividad","Indique a que objetivo/s se vincula cada actividad","Mes inicio\n","Mes fin \n","Costo de la actividad ($)\n(DGDR)","Detalle gastos ($) (DGDR)","Costo de la actividad ($)\n(Contraparte)","Detalle de los gastos ($)\n(Contraparte)","Nombre de la Contraparte","Costo Total  Actividad ($)\n(DGDR+Contraparte)","Observaciones"]
[null,{"$f":"ROW()-31","v":1},null,null,null,null,null,null,null,null,null,{"$f":"Tabla3[[#This Row],[Costo de la actividad ($)\n(Contraparte)]]+Tabla3[[#This Row],[Costo de la actividad ($)\n(DGDR)]]","v":0}]
[null,2,null,null,null,null,null,null,null,null,null,{"$f":"Tabla3[[#This Row],[Costo de la actividad ($)\n(Contraparte)]]+Tabla3[[#This Row],[Costo de la actividad ($)\n(DGDR)]]","v":0}]
[null,{"$f":"ROW()-31","v":3},null,null,null,null,null,null,null,null,null,{"$f":"Tabla3[[#This Row],[Costo de la actividad ($)\n(Contraparte)]]+Tabla3[[#This Row],[Costo de la actividad ($)\n(DGDR)]]","v":0}]
[null,{"$f":"ROW()-31","v":4},null,null,null,null,null,null,null,null,null,{"$f":"Tabla3[[#This Row],[Costo de la actividad ($)\n(Contraparte)]]+Tabla3[[#This Row],[Costo de la actividad ($)\n(DGDR)]]","v":0}]
[null,{"$f":"ROW()-31","v":5},null,null,null,null,null,null,null,null,null,{"$f":"Tabla3[[#This Row],[Costo de la actividad ($)\n(Contraparte)]]+Tabla3[[#This Row],[Costo de la actividad ($)\n(DGDR)]]","v":0}]
[null,null,null,null,"TOTALES $",null,{"$f":"SUM(G32:G36)","v":0},null,{"$f":"SUM(I32:I36)","v":0},null,null,{"$f":"(G37+I37)","v":0}]

{"sheet":"Articulación Territorial","index":5,"n_rows":19,"n_cols":8,"rows_kept":19,"cut":false,"hidden":false,"merged":[[6,1,6,4]]}
[]
[]
[]
[]
[]
[]
[]
[]
[]
[]
[]
[null,"ARTICULACIÓN TERRITORIAL"]
[]
[null,"Nº","Nombre","Tipo de organismo","Especificar rol que cumple en la Iniciativa","Domicilio","Nº Teléfono","Email"]
[null,{"$f":"ROW()-14","v":1},null,"(Elija opción)"]
[null,2]
[null,3]
[null,4]
[null,{"$f":"ROW()-14","v":5}]

{"sheet":"Participantes","index":6,"n_rows":19,"n_cols":22,"rows_kept":19,"cut":false,"hidden":false,"merged":[[16,24,16,25],[17,24,17,25],[18,24,18,25]]}
[]
[]
[]
[]
[]
[]
[]
[]
[]
[]
[]
[null,"PARTICIPANTES"]
[]
[null,"N°","Nombres","Apellidos","Nº C.I. ","Fecha de Nacimiento","Dirección \n(calle y número o ruta y km)","Departamento","Localidad","Pueblo/Paraje","Seccional Policial","Teléfono","Correo electrónico","Ud.es (relativo al género)","Otro (Especificar)","¿En los últimos 12 meses se ha vinculado a alguna Organización o colectivo del medio rural?","Sí, ¿cuál?","¿Cree tener ascendencia? Indique las que corresponda: Afro o negra, blanca, asiática o amarilla, indígena, otra.","Otra (especificar cual ….)","Sí indica más de una ascendencia, ¿Cuál considera la principal?","¿Último año de educación aprobado? (Nivel de Escolaridad)","Otro (Especificar)2"]
[null,{"$f":"ROW()-14","v":1},null,null,null,null,null,null,null,null,null,null,null,"(Elija opción)",null,"(Elija opción)",null,null,null,null,"(Elija opción)"]
[null,2,null,null,null,null,null,null,null,null,null,null,null,"(Elija opción)",null,"(Elija opción)",null,null,null,null,"(Elija opción)"]
[null,{"$f":"ROW()-14","v":3}]
[null,{"$f":"ROW()-14","v":4}]
[null,{"$f":"ROW()-14","v":5}]